Workbook

Sheet 原価
A2: 原価 | B2: 醤油ラーメン１杯
B3: 数量 | D3: 単価 | E3: 原価
A4: =予算!B8 -> 生ラーメン細麺5人前 | B4: 0.2 | C4: × | D4: =予算!E8 -> 199 | E4: =B4*D4 -> 39.8
A5: =予算!B9 -> ごく太メンマ | B5: =1/40 -> 0.025 | C5: × | D5: =予算!E9 -> 1026 | E5: =B5*D5 -> 25.65 | F5: １袋４０杯１杯２つ入れる
A6: =予算!B10 -> 冷凍ホウレンソウ | B6: =1/40 -> 0.025 | C6: × | D6: =予算!E10 -> 224 | E6: 5.6 | F6: １袋から４０袋箸１つまみ強
A7: 豚肩ロース | B7: =1/35 -> 0.02857142857 | C7: × | D7: 900 | E7: 25.71428571 | F7: 豚肩ロース900円で計算１ブロックにつき３５枚作れる
A8: たれ | B8: =1/50 -> 0.02 | C8: × | D8: =予算!E11+予算!E12+予算!E14+予算!E23 -> 833 | E8: 16.66 | F8: 50杯醤油１リットル、日本酒0.5リットル
A9: 冷凍青ネギ | B9: =1/50 -> 0.02 | C9: × | D9: =予算!E13 -> 192 | E9: 3.84 | F9: １袋50杯箸１つまみ
A10: 鳥丸ガラスープの素 | B10: =1/17 -> 0.05882352941 | C10: × | D10: 372 | E10: 21.88235294 | F10: 372円÷17回≒17円
A11: 割り箸 | B11: =1/500 -> 0.002 | C11: × | D11: 985 | E11: 1.97 | F11: 500膳で985円
A12: 容器 | B12: =1/50 -> 0.02 | C12: × | D12: 775 | E12: 15.5 | F12: ５０枚入り７１５円
A13: 合計 | E13: =SUM(E4:E12) -> 156.6166387
A15: 原価 | B15: ねぎ醤油ラーメン１杯
B16: 数量 | D16: 単価 | E16: 原価
A17: =A4 -> 生ラーメン細麺5人前 | B17: 0.2 | C17: × | D17: =D4 -> 199 | E17: =B17*D17 -> 39.8
A18: ごく太メンマ | B18: =1/40 -> 0.025 | C18: × | D18: 1026 | E18: =B18*D18 -> 25.65
A19: 冷凍ホウレンソウ | B19: =1/40 -> 0.025 | C19: × | D19: 224 | E19: =B19*D19 -> 5.6
A20: 豚肩ロース | B20: =1/35 -> 0.02857142857 | C20: × | D20: 900 | E20: 25.71428571
A21: たれ | B21: =1/50 -> 0.02 | C21: × | D21: 833 | E21: 16.66
A22: 冷凍青ネギ | B22: =1/50 -> 0.02 | C22: × | D22: 192 | E22: 3.84
A23: 鳥丸ガラスープの素 | B23: =1/17 -> 0.05882352941 | C23: × | D23: =D10 -> 372 | E23: 21.88235294
A24: 割り箸 | B24: =1/500 -> 0.002 | C24: × | D24: 985 | E24: 1.97
A25: 容器 | B25: =1/50 -> 0.02 | C25: × | D25: 775 | E25: 15.5
A26: 合計 | E26: =SUM(E17:E25) -> 156.6166387
A28: 販売単価(原価30％を達成するための販売単価）
A29: 醤油ラーメン | B29: =E13/0.3 -> 522.0554622
A30: ねぎ醤油ラーメン | B30: =E26/0.3 -> 522.0554622

Sheet 予算
B1: 予算編成
B2: 売上に関する項目：販売予測 | H2: 予算損益計算書 | L2: 元手が回収できる売上高と販売量（損益分岐点分析）
B3: 醤油ラーメン | C3: 350 | D3: 杯 | E3: 500 | F3: =C3*E3 -> 175000 | H3: 売上高 | I3: 1 | J3: =F5 -> 337500 | L3: 項 目 | M3: 計算 | N3: 割 合 | O3: 金 額
B4: ねぎ醤油ラーメン | C4: 325 | D4: 杯 | E4: 500 | F4: =C4*E4 -> 162500 | H4: 変動費 | I4: =J4/$J$3 -> 0.3398607407 | J4: =F28 -> 114703 | L4: 売上高 | M4: ① | N4: 1 | O4: =O6+O5 -> 183343
B5: 合 計 | F5: =F3+F4 -> 337500 | H5: 貢献利益 | I5: =J5/$J$3 -> 0.6601392593 | J5: =J3-J4 -> 222797 | L5: 変動費 | M5: ② | N5: =O5/$O$4 -> 0.6256197401 | O5: =J4 -> 114703
B6: 材料費等に関する項目：原価予測（変動費） | F6: (税込み) | H6: 固定費 | J6: =F40 -> 68640 | L6: 貢献利益 | M6: ①－②＝③ | N6: =O6/$O$4 -> 0.3743802599 | O6: =O8+O7 -> 68640
A7: No. | B7: 費 目 | C7: 数 量 | D7: 協賛 | E7: 単 価 | F7: 金 額 | H7: 営業利益 | J7: =J5-J6 -> 154157 | L7: 固定費 | M7: ④ | N7: 0.3743802599 | O7: =J6 -> 68640
A8: 1 | B8: 生ラーメン細麺5人前 | C8: 140 | E8: 199 | F8: =IF(B8="","",IF(D8="〇",0,C8*E8)) -> 27860 | L8: 営業利益 | M8: ③－④＝⑤ | N8: 0 | O8: 0
A9: 2 | B9: ごく太メンマ | C9: 18 | E9: 1026 | F9: 18468 | H9: 協賛品
A10: 3 | B10: 冷凍ホウレンソウ | C10: 18 | E10: 224 | F10: 4032 | H10: =IF(D8="〇",B8,"") ->  | I10: =IF(H10="","",C8*E8) ->  | L10: 元手が回収できる販売量 | N10: =O4/E4 -> 366.686 | O10: を超えれば儲けがでる！！
A11: 4 | B11: 上級本醸造しょうゆ1.8L | C11: 8 | E11: 253 | F11: 2024 | L11: 協賛品を加えて元手が回収できる販売量 | N11: =(J40+J38)/E4 -> 366.686 | O11: を超えれば儲けがでる！！
A12: 5 | B12: 日の出業務料理酒1.5L | C12: 7 | E12: 340 | F12: 2380 | L12: 出店に必要な出資額 | M12: =O4 -> 183343
A13: 6 | B13: 青ネギ冷凍 | C13: 18 | E13: 192 | F13: 3456
A14: 7 | B14: しょうが | C14: 20 | E14: 100 | F14: 2000
A15: 8 | B15: E-2Rどんぶり | C15: 15 | E15: 775 | F15: 11625
A16: 9 | B16: アスペン元禄バシ５００膳 | C16: 2 | E16: 985 | F16: 1970
A17: 10 | B17: 豚肩ロース | C17: 20 | E17: 900 | F17: 18000
A18: 11 | B18: チャッカマン | C18: 1 | E18: 0 | F18: 0
A19: 12 | B19: たわし | C19: 2 | E19: 365 | F19: 730
A20: 13 | B20: 鳥丸ガラスープの素 | C20: 41 | E20: 372 | F20: 15252
A21: 14 | B21: キッチンタイマー | C21: 5 | E21: 0 | F21: 0
A22: 15 | B22: キッチンペーパー、軍手、ゴム手袋、衛生費 | C22: 1 | E22: 4106 | F22: 4106
A23: 16 | B23: 長ネギ | C23: 20 | E23: 140 | F23: 2800
A24: 17
A25: 18
A26: 19
A27: 20
B28: 合 計 | F28: =SUM(F8:F27) -> 114703
H29: 合 計 | I29: =SUM(I10:I28) -> 0
B30: レンタル品等に関する項目：原価予測（固定費）
A31: No. | B31: 費 目 | C31: 数 量 | D31: 協賛 | E31: 単 価 | F31: 金 額 | H31: 予算営業利益－協賛品原価
A32: 1 | B32: ガスボンベLPG | C32: 4 | E32: 7920 | F32: =IF(B32="","",C32*E32) -> 31680 | H32: 予算営業利益 | I32: =J7 -> 154157
A33: 2 | B33: ガスコンロ特大 | C33: 3 | E33: 6160 | F33: =IF(B33="","",C33*E33) -> 18480 | H33: 協賛品原価 | I33: =I29 -> 0
A34: 3 | B34: 寸胴鍋45L | C34: 3 | E34: 6160 | F34: 18480 | H34: 営業利益 | I34: =I32-I33 -> 154157
A35: 4
A36: 5 | H36: 予算実質的損益計算書
A37: 6 | H37: 売上高 | I37: 1 | J37: =F5 -> 337500
A38: 7 | H38: 変動費 | I38: =J38/$J$3 -> 0.3398607407 | J38: =F28+I29 -> 114703
A39: 8 | H39: 貢献利益 | I39: =J39/$J$3 -> 0.6601392593 | J39: =J37-J38 -> 222797
B40: 合 計 | F40: =SUM(F32:F39) -> 68640 | H40: 固定費 | J40: =F40 -> 68640
H41: 営業利益 | J41: =J39-J40 -> 154157

Sheet 損益分岐点売上高・投資
A1: 損益分岐点 損益計算書 （単位：円） | D1: 投資状況 店舗名 | E1: 自家製ラーメン
A2: =IF(E1="","",E1) -> 自家製ラーメン | B2: 2024年11月３日～2024年11月４日 | D2: 出資者（学生数） | E2: 渡邉 | Y2: =IF(E2="","",COUNTA(E2:X2)) -> 1 | Z2: 名
A3: 損益分岐点売上高 | B3: =B5+B4 -> 68640 | D3: 初期投資 | E3: =183000 -> 183000 | Y3: =IF(E3="","",SUM(E3:X3)) -> 183000
A4: 変 動 費 | B4: =支出項目!F30 -> 0 | D4: 文化祭前追加投資 | Y4: =SUM(E4:X4) -> 0
A5: 貢献利益 | B5: =B6+B7 -> 68640 | D5: 追加投資11月3日 | Y5: =SUM(E5:X5) -> 0
A6: 固 定 費 | B6: =支出項目!F44 -> 68640 | D6: 追加投資11月4日 | Y6: 0
A7: 営業利益 | B7: 0 | D7: 追加投資11月5日 | Y7: 0
D8: 合計 | E8: =IF(E$2="","",SUM(E3:E7)) -> 183000 | F8: =IF(F$2="","",SUM(F3:F7)) ->  | Y8: 183000
A9: 文化祭開催期間 | B9: 月 日 | D9: 1人あたりの分配金 | E9: =IF(E8="","",現金出納帳!$E$15*E8/$Y$8) -> 114360 | F9: =IF(F8="","",現金出納帳!$E$15*F8/$Y$8) ->  | G9: =IF(G8="","",現金出納帳!$E$15*G8/$Y$8) ->  | H9: =IF(H8="","",現金出納帳!$E$15*H8/$Y$8) ->  | I9: =IF(I8="","",現金出納帳!$E$15*I8/$Y$8) ->  | J9: =IF(J8="","",現金出納帳!$E$15*J8/$Y$8) ->  | K9: =IF(K8="","",現金出納帳!$E$15*K8/$Y$8) ->  | L9: =IF(L8="","",現金出納帳!$E$15*L8/$Y$8) ->  | M9: =IF(M8="","",現金出納帳!$E$15*M8/$Y$8) ->  | N9: =IF(N8="","",現金出納帳!$E$15*N8/$Y$8) ->  | O9: =IF(O8="","",現金出納帳!$E$15*O8/$Y$8) ->  | P9: =IF(P8="","",現金出納帳!$E$15*P8/$Y$8) ->  | Q9: =IF(Q8="","",現金出納帳!$E$15*Q8/$Y$8) ->  | R9: =IF(R8="","",現金出納帳!$E$15*R8/$Y$8) ->  | S9: =IF(S8="","",現金出納帳!$E$15*S8/$Y$8) ->  | T9: =IF(T8="","",現金出納帳!$E$15*T8/$Y$8) ->  | U9: =IF(U8="","",現金出納帳!$E$15*U8/$Y$8) ->  | V9: =IF(V8="","",現金出納帳!$E$15*V8/$Y$8) ->  | W9: =IF(W8="","",現金出納帳!$E$15*W8/$Y$8) ->  | X9: =IF(X8="","",現金出納帳!$E$15*X8/$Y$8) ->  | Y9: =SUM(E9:X9) -> 114360
A10: １日目 | B10: 2023-11-03 | D10: 1人あたりの還元額 | E10: =IF(E8="","",IF(E9>=E8,損益計算書!$E$7*E8/$Y$8,"0")) -> 0 | F10: =IF(F8="","",IF(F9>=F8,損益計算書!$E$7*F8/$Y$8,"0")) ->  | G10: =IF(G8="","",IF(G9>=G8,損益計算書!$E$7*G8/$Y$8,"0")) ->  | H10: =IF(H8="","",IF(H9>=H8,損益計算書!$E$7*H8/$Y$8,"0")) ->  | I10: =IF(I8="","",IF(I9>=I8,損益計算書!$E$7*I8/$Y$8,"0")) ->  | J10: =IF(J8="","",IF(J9>=J8,損益計算書!$B$7*J8/$Y$8,"0")) ->  | K10: =IF(K8="","",IF(K9>=K8,損益計算書!$B$7*K8/$Y$8,"0")) ->  | L10: =IF(L8="","",IF(L9>=L8,損益計算書!$B$7*L8/$Y$8,"0")) ->  | M10: =IF(M8="","",IF(M9>=M8,損益計算書!$B$7*M8/$Y$8,"0")) ->  | N10: =IF(N8="","",IF(N9>=N8,損益計算書!$B$7*N8/$Y$8,"0")) ->  | O10: =IF(O8="","",IF(O9>=O8,損益計算書!$B$7*O8/$Y$8,"0")) ->  | P10: =IF(P8="","",IF(P9>=P8,損益計算書!$B$7*P8/$Y$8,"0")) ->  | Q10: =IF(Q8="","",IF(Q9>=Q8,損益計算書!$B$7*Q8/$Y$8,"0")) ->  | R10: =IF(R8="","",IF(R9>=R8,損益計算書!$B$7*R8/$Y$8,"0")) ->  | S10: =IF(S8="","",IF(S9>=S8,損益計算書!$B$7*S8/$Y$8,"0")) ->  | T10: =IF(T8="","",IF(T9>=T8,損益計算書!$B$7*T8/$Y$8,"0")) ->  | U10: =IF(U8="","",IF(U9>=U8,損益計算書!$B$7*U8/$Y$8,"0")) ->  | V10: =IF(V8="","",IF(V9>=V8,損益計算書!$B$7*V8/$Y$8,"0")) ->  | W10: =IF(W8="","",IF(W9>=W8,損益計算書!$B$7*W8/$Y$8,"0")) ->  | X10: =IF(X8="","",IF(X9>=X8,損益計算書!$B$7*X8/$Y$8,"0")) ->  | Y10: =SUM(E10:X10) -> 0
A11: ２日目 | B11: 2023-11-04 | D11: 1人あたりの投下資本利益率 | E11: =IF(E8="","",E10/E8) -> 0 | F11: =IF(F8="","",F10/F8) -> 
D12: 1番多く出資している人 | E12: =IF(E8="","",IF(MAX($E$8:$X$8)=E8,"大株主！","")) -> 大株主！ | F12: =IF(F8="","",IF(MAX($E$8:$X$8)=F8,"大株主！","")) -> 

Sheet 支出項目
A1: 支出項目
A2: 材料購入（変動費） | B2: 予 算 | C2: 文化祭前 | D2: =IF(損益分岐点売上高・投資!B10="","",損益分岐点売上高・投資!B10) -> 2023-11-03 | E2: =IF(損益分岐点売上高・投資!B11="","",損益分岐点売上高・投資!B11) -> 2023-11-04 | F2: 合計 | G2: 差 異
A3: =IF(予算!B8="","",予算!B8) -> 生ラーメン細麺5人前 | B3: =IF(予算!F8="","",予算!F8) -> 27860 | F3: =IF($A3="","",SUM(C3:E3)) -> 0 | G3: =IF(B3="","",B3-F3) -> 27860
A4: =IF(予算!B9="","",予算!B9) -> ごく太メンマ | B4: =IF(予算!F9="","",予算!F9) -> 18468 | F4: 0 | G4: =IF(B4="","",B4-F4) -> 18468
A5: =IF(予算!B10="","",予算!B10) -> 冷凍ホウレンソウ | B5: =IF(予算!F10="","",予算!F10) -> 4032 | F5: 0 | G5: 4032
A6: =IF(予算!B11="","",予算!B11) -> 上級本醸造しょうゆ1.8L | B6: =IF(予算!F11="","",予算!F11) -> 2024 | F6: 0 | G6: 2024
A7: =IF(予算!B12="","",予算!B12) -> 日の出業務料理酒1.5L | B7: =IF(予算!F12="","",予算!F12) -> 2380 | F7: 0 | G7: 2380
A8: =IF(予算!B13="","",予算!B13) -> 青ネギ冷凍 | B8: =IF(予算!F13="","",予算!F13) -> 3456 | F8: 0 | G8: 3456
A9: =IF(予算!B14="","",予算!B14) -> しょうが | B9: =IF(予算!F14="","",予算!F14) -> 2000 | F9: 0 | G9: 2000
A10: =IF(予算!B15="","",予算!B15) -> E-2Rどんぶり | B10: =IF(予算!F15="","",予算!F15) -> 11625 | F10: 0 | G10: 11625
A11: =IF(予算!B16="","",予算!B16) -> アスペン元禄バシ５００膳 | B11: =IF(予算!F16="","",予算!F16) -> 1970 | F11: 0 | G11: 1970
A12: =IF(予算!B17="","",予算!B17) -> 豚肩ロース | B12: =IF(予算!F17="","",予算!F17) -> 18000 | F12: 0 | G12: 18000
A13: =IF(予算!B18="","",予算!B18) -> チャッカマン | B13: =IF(予算!F18="","",予算!F18) -> 0 | F13: 0 | G13: 0
A14: =IF(予算!B19="","",予算!B19) -> たわし | B14: =IF(予算!F19="","",予算!F19) -> 730 | F14: 0 | G14: 730
A15: =IF(予算!B20="","",予算!B20) -> 鳥丸ガラスープの素 | B15: =IF(予算!F20="","",予算!F20) -> 15252 | F15: 0 | G15: 15252
A16: =IF(予算!B21="","",予算!B21) -> キッチンタイマー | B16: =IF(予算!F21="","",予算!F21) -> 0 | F16: 0 | G16: 0
A17: =IF(予算!B22="","",予算!B22) -> キッチンペーパー、軍手、ゴム手袋、衛生費 | B17: =IF(予算!F22="","",予算!F22) -> 4106 | F17: 0 | G17: 4106
A18: =IF(予算!B23="","",予算!B23) -> 長ネギ | B18: =IF(予算!F23="","",予算!F23) -> 2800 | F18: 0 | G18: 2800
A19: =IF(予算!B24="","",予算!B24) ->  | B19: =IF(予算!F24="","",予算!F24) -> 
A20: =IF(予算!B25="","",予算!B25) ->  | B20: =IF(予算!F25="","",予算!F25) -> 
A21: =IF(予算!B26="","",予算!B26) ->  | B21: =IF(予算!F26="","",予算!F26) -> 
A22: =IF(予算!B27="","",予算!B27) ->  | B22: =IF(予算!F27="","",予算!F27) -> 
A23: 生食ラーメン（賄い） | B23: =IF(A23="","",0) -> 0 | F23: 0 | G23: 0
A24: こしょう・七味とうがらし・ガーリック | B24: =IF(A24="","",0) -> 0 | F24: 0 | G24: 0
A25: おわん・タッパー | B25: 0 | F25: 0 | G25: 0
A26: 飲料 | B26: 0 | F26: 0 | G26: 0
A27: キッチンタイマー・バケツ・手袋・消耗品 | B27: 0 | F27: 0 | G27: 0
A29: 消費税 | B29: =予算!#REF! ->  | F29: 0
A30: 材料費合計 | B30: =SUM(B3:B29) ->  | C30: =IF(C$2="","",SUM(C3:C29)) -> 0 | D30: =IF(D$2="","",SUM(D3:D29)) -> 0 | E30: =IF(E$2="","",SUM(E3:E29)) -> 0 | F30: =IF(F$2="","",SUM(F3:F29)) -> 0 | G30: =IF(G$2="","",SUM(G3:G29)) -> 
A32: レンタル器具類（固定費） | B32: 予 算 | C32: 文化祭前 | D32: =IF(日記帳!K$13="","",日記帳!K$13) -> 2023-11-03 | E32: =IF(日記帳!L$13="","",日記帳!L$13) -> 2023-11-04 | F32: 合計 | G32: 差 異
A33: =IF(予算!B32="","",予算!B32) -> ガスボンベLPG | B33: =IF(予算!F32="","",予算!F32) -> 31680 | C33: 31680 | F33: =IF($A33="","",SUM(C33:E33)) -> 31680 | G33: =IF(B33="","",B33-F33) -> 0
A34: =IF(予算!B33="","",予算!B33) -> ガスコンロ特大 | B34: =IF(予算!F33="","",予算!F33) -> 18480 | C34: 18480 | F34: 18480 | G34: =IF(B34="","",B34-F34) -> 0
A35: =IF(予算!B34="","",予算!B34) -> 寸胴鍋45L | B35: =IF(予算!F34="","",予算!F34) -> 18480 | C35: 18480 | F35: 18480 | G35: 0
A36: =IF(予算!B35="","",予算!B35) ->  | B36: =IF(予算!F35="","",予算!F35) -> 
A37: =IF(予算!B36="","",予算!B36) ->  | B37: =IF(予算!F36="","",予算!F36) -> 
A38: =IF(予算!B37="","",予算!B37) ->  | B38: =IF(予算!F37="","",予算!F37) -> 
A39: =IF(予算!B38="","",予算!B38) ->  | B39: =IF(予算!F38="","",予算!F38) -> 
A40: =IF(予算!B39="","",予算!B39) ->  | B40: =IF(予算!F39="","",予算!F39) -> 
B41: =IF(A41="","",0) -> 
A44: レンタル器具類合計 | B44: =IF(B$2="","",SUM(B33:B43)) -> 68640 | C44: =IF(C$2="","",SUM(C33:C43)) -> 68640 | D44: =IF(D$2="","",SUM(D33:D43)) -> 0 | E44: 0 | F44: 68640 | G44: 0
A46: 払い戻し・利益処分項目 | B46: 予 算 | C46: 文化祭前 | D46: =IF([1]日記帳!K$13="","",[1]日記帳!K$13) -> 2018-11-03 | E46: =IF([1]日記帳!L$13="","",[1]日記帳!L$13) -> 2018-11-04 | F46: 合計
A47: 払い戻し | F47: =IF($A47="","",SUM(C47:E47)) -> 0
A48: お花 | F48: 0
A49: お菓子 | F49: 0
A50: 払い戻し・利益処分項目合計 | B50: =IF(B$2="","",SUM(B47:B49)) -> 0 | C50: =IF(C$2="","",SUM(C47:C49)) -> 0 | D50: =IF(D$2="","",SUM(D47:D49)) -> 0 | E50: 0 | F50: 0
B52: 予 算 | C52: 文化祭前 | D52: =IF(日記帳!K$13="","",日記帳!K$13) -> 2023-11-03 | E52: =IF(日記帳!L$13="","",日記帳!L$13) -> 2023-11-04 | F52: 合計 | G52: 差 異
A53: 支出合計 | B53: =B30+B44+B50 ->  | C53: =IF(C$52="","",C30+C44+C50) -> 68640 | D53: =IF(D$52="","",D30+D44+D50) -> 0 | E53: =IF(E$52="","",E30+E44+E50) -> 0 | F53: =IF(F$52="","",F30+F44+F50) -> 68640 | G53: =IF(G$52="","",G30+G44) -> 
A55: 請求書または領収証（レシート）の金額を見ながら入力してください。
A56: 該当する項目がなければ、適当な項目名と金額を入力してください。

Sheet パネル
B2: =TODAY() -> 2024-08-10 | C2: =TIMEVALUE(TEXT(NOW(),"hh:mm:ss")) -> 16:59:19 | D2: 現在 | O2: 客 層
J5: 杯 | K5: 500 | L5: 円／杯 | M5: =I5*K5 -> 0
Q6: 日付 | R6: 時間 | S6: 商品名 | T6: 数量 | U6: 単価 | V6: 販売代金
Q7: =$B$2 -> 2024-08-10 | R7: =TIMEVALUE(TEXT(NOW(),"hh:mm:ss")) -> 16:59:19 | S7: =IF(Q17="","",Q17) -> 醤油ラーメン | T7: =I5 -> 0 | U7: =K5 -> 500 | V7: =T7*U7 -> 0
Q8: =$B$2 -> 2024-08-10 | R8: =TIMEVALUE(TEXT(NOW(),"hh:mm:ss")) -> 16:59:19 | S8: =IF(Q18="","",Q18) -> ねぎ醤油ラーメン | T8: =I12 -> 0 | U8: =K12 -> 500 | V8: =T8*U8 -> 0
J12: 杯 | K12: 500 | L12: 円／杯 | M12: =I12*K12 -> 0
L15: 代 金 | M15: =M5+M12 -> 0
Q16: 商品名 | R16: 通常価格 | S16: 前売り券 | T16: 値下価格
Q17: 醤油ラーメン | R17: 500 | S17: 300 | T17: 250 | U17: 240 | V17: 230 | W17: 220 | X17: 210 | Y17: 200 | Z17: 190 | AA17: 180 | AB17: 170 | AC17: 160 | AD17: 150 | AE17: 140 | AF17: 130 | AG17: 120 | AH17: 110 | AI17: 100 | AJ17: 90 | AK17: 80 | AL17: 0
Q18: ねぎ醤油ラーメン | R18: 500 | S18: 300 | T18: 250 | U18: 240 | V18: 230 | W18: 220 | X18: 210 | Y18: 200 | Z18: 190 | AA18: 180 | AB18: 170 | AC18: 160 | AD18: 150 | AE18: 140 | AF18: 130 | AG18: 120 | AH18: 110 | AI18: 100 | AJ18: 90 | AK18: 80 | AL18: 0
B19: 目標売上高まであと、、、、
B20: =損益計算書!B3-損益分岐点売上高・投資!B3 -> -68640 | C20: 円 | D20: =IF(B20>=0,"目標達成おめでとう！！！（＾V＾）やったね！！","気合い入れて頑張れ！！！！（＾▽＾）風邪ひかないでね") -> 気合い入れて頑張れ！！！！（＾▽＾）風邪ひかないでね

Sheet 日記帳
A1: 日記帳
J2: 各店舗で、商品名、客層を入力してください。
A3: 日付 | B3: 時間 | C3: 商品名 | D3: 販売数 | E3: 販売単価 | F3: 売上高 | G3: 客層 | H3: メモ | J3: 商品名 | K3: 客層設定
J4: =IF(パネル!Q17="","",パネル!Q17) -> 醤油ラーメン | K4: 中学生以下
J5: =IF(パネル!Q18="","",パネル!Q18) -> ねぎ醤油ラーメン | K5: 高校生
J6: =IF(パネル!Q19="","",パネル!Q19) ->  | K6: 大学生
J7: =IF(パネル!Q20="","",パネル!Q20) ->  | K7: 地域の方
J8: =IF(パネル!Q21="","",パネル!Q21) -> 
J9: =IF(パネル!Q22="","",パネル!Q22) -> 
J10: =IF(パネル!Q23="","",パネル!Q23) -> 
J13: 販売個数 | K13: =IF(損益分岐点売上高・投資!B10="","",損益分岐点売上高・投資!B10) -> 2023-11-03 | L13: =IF(損益分岐点売上高・投資!B11="","",損益分岐点売上高・投資!B11) -> 2023-11-04 | M13: 合計
J14: =IF(J4="","",J4) -> 醤油ラーメン | K14: =IF(OR($J14="",K$13=""),"",SUMIFS($D$4:$D$10003,$C$4:$C$10003,$J14,$A$4:$A$10003,K$13)) -> 0 | L14: 0 | M14: =IF($J14="","",SUM(K14:L14)) -> 0
J15: ねぎ醤油ラーメン | K15: 0 | L15: 0 | M15: 0
J21: 合計 | K21: =IF(K$13="","",SUM(K14:K20)) -> 0 | L21: =IF(L$13="","",SUM(L14:L20)) -> 0 | M21: =IF(M$13="","",SUM(M14:M20)) -> 0
J23: 天候 | K23: =IF(損益分岐点売上高・投資!B10="","",損益分岐点売上高・投資!B10) -> 2023-11-03 | L23: =IF(損益分岐点売上高・投資!B11="","",損益分岐点売上高・投資!B11) -> 2023-11-04
J24: 午前
J25: 午後
J26: 平均気温℃
E97: =IF(C97="","",VLOOKUP(C97,$J$4:$J$10,2,FALSE)) ->  | F97: =IF(E97="","",D97*E97) -> 
E111: =IF(C111="","",VLOOKUP(C111,$J$4:$J$10,2,FALSE)) -> 
F127: =IF(E127="","",D127*E127) -> 
F128: =IF(E128="","",D128*E128) -> 
F154: =IF(E154="","",D154*E154) -> 
F155: =IF(E155="","",D155*E155) -> 
E175: =IF(C175="","",VLOOKUP(C175,$J$4:$J$10,2,FALSE)) -> 
F181: =IF(E181="","",D181*E181) -> 
F182: =IF(E182="","",D182*E182) -> 
F220: =IF(E220="","",D220*E220) -> 
F221: =IF(E221="","",D221*E221) -> 
E239: =IF(C239="","",VLOOKUP(C239,$J$4:$J$10,2,FALSE)) -> 
F247: =IF(E247="","",D247*E247) -> 
F248: =IF(E248="","",D248*E248) -> 
F274: =IF(E274="","",D274*E274) -> 
F275: =IF(E275="","",D275*E275) -> 
F294: =IF(E294="","",D294*E294) -> 
E303: =IF(C303="","",VLOOKUP(C303,$J$4:$J$10,2,FALSE)) -> 
F328: =IF(E328="","",D328*E328) -> 
E367: =IF(C367="","",VLOOKUP(C367,$J$4:$J$10,2,FALSE)) -> 
F392: =IF(E392="","",D392*E392) -> 
E431: =IF(C431="","",VLOOKUP(C431,$J$4:$J$10,2,FALSE)) -> 
F456: =IF(E456="","",D456*E456) -> 
E495: =IF(C495="","",VLOOKUP(C495,$J$4:$J$10,2,FALSE)) -> 
F520: =IF(E520="","",D520*E520) -> 
E559: =IF(C559="","",VLOOKUP(C559,$J$4:$J$10,2,FALSE)) -> 
F584: =IF(E584="","",D584*E584) -> 
E623: =IF(C623="","",VLOOKUP(C623,$J$4:$J$10,2,FALSE)) -> 
F648: =IF(E648="","",D648*E648) -> 
E687: =IF(C687="","",VLOOKUP(C687,$J$4:$J$10,2,FALSE)) -> 
F712: =IF(E712="","",D712*E712) -> 
E751: =IF(C751="","",VLOOKUP(C751,$J$4:$J$10,2,FALSE)) -> 
F776: =IF(E776="","",D776*E776) -> 
E815: =IF(C815="","",VLOOKUP(C815,$J$4:$J$10,2,FALSE)) -> 
F840: =IF(E840="","",D840*E840) -> 
E879: =IF(C879="","",VLOOKUP(C879,$J$4:$J$10,2,FALSE)) -> 
F904: =IF(E904="","",D904*E904) -> 
E943: =IF(C943="","",VLOOKUP(C943,$J$4:$J$10,2,FALSE)) -> 
F968: =IF(E968="","",D968*E968) -> 
E1007: =IF(C1007="","",VLOOKUP(C1007,$J$4:$J$10,2,FALSE)) -> 
F1032: =IF(E1032="","",D1032*E1032) -> 
E1071: =IF(C1071="","",VLOOKUP(C1071,$J$4:$J$10,2,FALSE)) -> 
F1096: =IF(E1096="","",D1096*E1096) -> 
E1135: =IF(C1135="","",VLOOKUP(C1135,$J$4:$J$10,2,FALSE)) -> 
F1160: =IF(E1160="","",D1160*E1160) -> 
E1199: =IF(C1199="","",VLOOKUP(C1199,$J$4:$J$10,2,FALSE)) -> 
F1224: =IF(E1224="","",D1224*E1224) -> 
E1263: =IF(C1263="","",VLOOKUP(C1263,$J$4:$J$10,2,FALSE)) -> 
F1288: =IF(E1288="","",D1288*E1288) -> 
E1327: =IF(C1327="","",VLOOKUP(C1327,$J$4:$J$10,2,FALSE)) -> 
F1352: =IF(E1352="","",D1352*E1352) -> 
E1391: =IF(C1391="","",VLOOKUP(C1391,$J$4:$J$10,2,FALSE)) -> 
F1416: =IF(E1416="","",D1416*E1416) -> 
E1455: =IF(C1455="","",VLOOKUP(C1455,$J$4:$J$10,2,FALSE)) -> 
F1480: =IF(E1480="","",D1480*E1480) -> 
E1519: =IF(C1519="","",VLOOKUP(C1519,$J$4:$J$10,2,FALSE)) -> 
F1544: =IF(E1544="","",D1544*E1544) -> 
E1583: =IF(C1583="","",VLOOKUP(C1583,$J$4:$J$10,2,FALSE)) -> 
F1608: =IF(E1608="","",D1608*E1608) -> 
E1647: =IF(C1647="","",VLOOKUP(C1647,$J$4:$J$10,2,FALSE)) -> 
F1672: =IF(E1672="","",D1672*E1672) -> 
E1711: =IF(C1711="","",VLOOKUP(C1711,$J$4:$J$10,2,FALSE)) -> 
F1736: =IF(E1736="","",D1736*E1736) -> 
E1775: =IF(C1775="","",VLOOKUP(C1775,$J$4:$J$10,2,FALSE)) -> 
F1800: =IF(E1800="","",D1800*E1800) -> 
E1839: =IF(C1839="","",VLOOKUP(C1839,$J$4:$J$10,2,FALSE)) -> 
F1864: =IF(E1864="","",D1864*E1864) -> 
E1903: =IF(C1903="","",VLOOKUP(C1903,$J$4:$J$10,2,FALSE)) -> 
F1928: =IF(E1928="","",D1928*E1928) -> 
E1967: =IF(C1967="","",VLOOKUP(C1967,$J$4:$J$10,2,FALSE)) -> 
F1992: =IF(E1992="","",D1992*E1992) -> 
E2031: =IF(C2031="","",VLOOKUP(C2031,$J$4:$J$10,2,FALSE)) -> 
F2056: =IF(E2056="","",D2056*E2056) -> 
E2095: =IF(C2095="","",VLOOKUP(C2095,$J$4:$J$10,2,FALSE)) -> 
F2120: =IF(E2120="","",D2120*E2120) -> 
E2159: =IF(C2159="","",VLOOKUP(C2159,$J$4:$J$10,2,FALSE)) -> 
F2184: =IF(E2184="","",D2184*E2184) -> 
E2223: =IF(C2223="","",VLOOKUP(C2223,$J$4:$J$10,2,FALSE)) -> 
F2248: =IF(E2248="","",D2248*E2248) -> 
E2287: =IF(C2287="","",VLOOKUP(C2287,$J$4:$J$10,2,FALSE)) -> 
F2312: =IF(E2312="","",D2312*E2312) -> 
E2351: =IF(C2351="","",VLOOKUP(C2351,$J$4:$J$10,2,FALSE)) -> 
F2376: =IF(E2376="","",D2376*E2376) -> 
E2415: =IF(C2415="","",VLOOKUP(C2415,$J$4:$J$10,2,FALSE)) -> 
F2440: =IF(E2440="","",D2440*E2440) -> 
E2479: =IF(C2479="","",VLOOKUP(C2479,$J$4:$J$10,2,FALSE)) -> 
F2504: =IF(E2504="","",D2504*E2504) -> 
E2543: =IF(C2543="","",VLOOKUP(C2543,$J$4:$J$10,2,FALSE)) -> 
F2568: =IF(E2568="","",D2568*E2568) -> 
E2607: =IF(C2607="","",VLOOKUP(C2607,$J$4:$J$10,2,FALSE)) -> 
F2632: =IF(E2632="","",D2632*E2632) -> 
E2671: =IF(C2671="","",VLOOKUP(C2671,$J$4:$J$10,2,FALSE)) -> 
F2696: =IF(E2696="","",D2696*E2696) -> 
E2735: =IF(C2735="","",VLOOKUP(C2735,$J$4:$J$10,2,FALSE)) -> 
F2760: =IF(E2760="","",D2760*E2760) -> 
E2799: =IF(C2799="","",VLOOKUP(C2799,$J$4:$J$10,2,FALSE)) -> 
F2824: =IF(E2824="","",D2824*E2824) -> 
E2863: =IF(C2863="","",VLOOKUP(C2863,$J$4:$J$10,2,FALSE)) -> 
F2888: =IF(E2888="","",D2888*E2888) -> 
E2927: =IF(C2927="","",VLOOKUP(C2927,$J$4:$J$10,2,FALSE)) -> 
F2952: =IF(E2952="","",D2952*E2952) -> 
E2991: =IF(C2991="","",VLOOKUP(C2991,$J$4:$J$10,2,FALSE)) -> 
F3016: =IF(E3016="","",D3016*E3016) -> 
E3055: =IF(C3055="","",VLOOKUP(C3055,$J$4:$J$10,2,FALSE)) -> 
F3080: =IF(E3080="","",D3080*E3080) -> 
E3119: =IF(C3119="","",VLOOKUP(C3119,$J$4:$J$10,2,FALSE)) -> 
F3144: =IF(E3144="","",D3144*E3144) -> 
E3183: =IF(C3183="","",VLOOKUP(C3183,$J$4:$J$10,2,FALSE)) -> 
F3208: =IF(E3208="","",D3208*E3208) -> 
E3247: =IF(C3247="","",VLOOKUP(C3247,$J$4:$J$10,2,FALSE)) -> 
F3272: =IF(E3272="","",D3272*E3272) -> 
E3311: =IF(C3311="","",VLOOKUP(C3311,$J$4:$J$10,2,FALSE)) -> 
F3336: =IF(E3336="","",D3336*E3336) -> 
E3375: =IF(C3375="","",VLOOKUP(C3375,$J$4:$J$10,2,FALSE)) -> 
F3400: =IF(E3400="","",D3400*E3400) -> 
E3439: =IF(C3439="","",VLOOKUP(C3439,$J$4:$J$10,2,FALSE)) -> 
F3464: =IF(E3464="","",D3464*E3464) -> 
E3503: =IF(C3503="","",VLOOKUP(C3503,$J$4:$J$10,2,FALSE)) -> 
F3528: =IF(E3528="","",D3528*E3528) -> 
E3567: =IF(C3567="","",VLOOKUP(C3567,$J$4:$J$10,2,FALSE)) -> 
F3592: =IF(E3592="","",D3592*E3592) -> 
E3631: =IF(C3631="","",VLOOKUP(C3631,$J$4:$J$10,2,FALSE)) -> 
F3656: =IF(E3656="","",D3656*E3656) -> 
E3695: =IF(C3695="","",VLOOKUP(C3695,$J$4:$J$10,2,FALSE)) -> 
F3720: =IF(E3720="","",D3720*E3720) -> 
E3759: =IF(C3759="","",VLOOKUP(C3759,$J$4:$J$10,2,FALSE)) -> 
F3784: =IF(E3784="","",D3784*E3784) -> 
E3823: =IF(C3823="","",VLOOKUP(C3823,$J$4:$J$10,2,FALSE)) -> 
F3848: =IF(E3848="","",D3848*E3848) -> 
E3887: =IF(C3887="","",VLOOKUP(C3887,$J$4:$J$10,2,FALSE)) -> 
F3912: =IF(E3912="","",D3912*E3912) -> 
E3951: =IF(C3951="","",VLOOKUP(C3951,$J$4:$J$10,2,FALSE)) -> 
F3976: =IF(E3976="","",D3976*E3976) -> 
E4015: =IF(C4015="","",VLOOKUP(C4015,$J$4:$J$10,2,FALSE)) -> 
F4040: =IF(E4040="","",D4040*E4040) -> 
E4079: =IF(C4079="","",VLOOKUP(C4079,$J$4:$J$10,2,FALSE)) -> 
F4104: =IF(E4104="","",D4104*E4104) -> 
E4143: =IF(C4143="","",VLOOKUP(C4143,$J$4:$J$10,2,FALSE)) -> 
F4168: =IF(E4168="","",D4168*E4168) -> 
E4207: =IF(C4207="","",VLOOKUP(C4207,$J$4:$J$10,2,FALSE)) -> 
F4232: =IF(E4232="","",D4232*E4232) -> 
E4271: =IF(C4271="","",VLOOKUP(C4271,$J$4:$J$10,2,FALSE)) -> 
F4296: =IF(E4296="","",D4296*E4296) -> 
E4335: =IF(C4335="","",VLOOKUP(C4335,$J$4:$J$10,2,FALSE)) -> 
F4360: =IF(E4360="","",D4360*E4360) -> 
E4399: =IF(C4399="","",VLOOKUP(C4399,$J$4:$J$10,2,FALSE)) -> 
F4424: =IF(E4424="","",D4424*E4424) -> 
E4463: =IF(C4463="","",VLOOKUP(C4463,$J$4:$J$10,2,FALSE)) -> 
F4488: =IF(E4488="","",D4488*E4488) -> 
E4527: =IF(C4527="","",VLOOKUP(C4527,$J$4:$J$10,2,FALSE)) -> 
F4552: =IF(E4552="","",D4552*E4552) -> 
E4591: =IF(C4591="","",VLOOKUP(C4591,$J$4:$J$10,2,FALSE)) -> 
F4616: =IF(E4616="","",D4616*E4616) -> 
E4655: =IF(C4655="","",VLOOKUP(C4655,$J$4:$J$10,2,FALSE)) -> 
F4680: =IF(E4680="","",D4680*E4680) -> 
E4719: =IF(C4719="","",VLOOKUP(C4719,$J$4:$J$10,2,FALSE)) -> 
F4744: =IF(E4744="","",D4744*E4744) -> 
E4783: =IF(C4783="","",VLOOKUP(C4783,$J$4:$J$10,2,FALSE)) -> 
F4808: =IF(E4808="","",D4808*E4808) -> 
E4847: =IF(C4847="","",VLOOKUP(C4847,$J$4:$J$10,2,FALSE)) -> 
F4872: =IF(E4872="","",D4872*E4872) -> 
E4911: =IF(C4911="","",VLOOKUP(C4911,$J$4:$J$10,2,FALSE)) -> 
F4936: =IF(E4936="","",D4936*E4936) -> 
E4975: =IF(C4975="","",VLOOKUP(C4975,$J$4:$J$10,2,FALSE)) -> 
F5000: =IF(E5000="","",D5000*E5000) -> 
E5039: =IF(C5039="","",VLOOKUP(C5039,$J$4:$J$10,2,FALSE)) -> 
F5064: =IF(E5064="","",D5064*E5064) -> 
E5103: =IF(C5103="","",VLOOKUP(C5103,$J$4:$J$10,2,FALSE)) -> 
F5128: =IF(E5128="","",D5128*E5128) -> 
E5167: =IF(C5167="","",VLOOKUP(C5167,$J$4:$J$10,2,FALSE)) -> 
F5192: =IF(E5192="","",D5192*E5192) -> 
E5231: =IF(C5231="","",VLOOKUP(C5231,$J$4:$J$10,2,FALSE)) -> 
F5256: =IF(E5256="","",D5256*E5256) -> 
E5295: =IF(C5295="","",VLOOKUP(C5295,$J$4:$J$10,2,FALSE)) -> 
F5320: =IF(E5320="","",D5320*E5320) -> 
E5359: =IF(C5359="","",VLOOKUP(C5359,$J$4:$J$10,2,FALSE)) -> 
F5384: =IF(E5384="","",D5384*E5384) -> 
E5423: =IF(C5423="","",VLOOKUP(C5423,$J$4:$J$10,2,FALSE)) -> 
F5448: =IF(E5448="","",D5448*E5448) -> 
E5487: =IF(C5487="","",VLOOKUP(C5487,$J$4:$J$10,2,FALSE)) -> 
F5512: =IF(E5512="","",D5512*E5512) -> 
E5551: =IF(C5551="","",VLOOKUP(C5551,$J$4:$J$10,2,FALSE)) -> 
... 139 more rows

Sheet 売上高分析
A1: 売上高分析
A2: 時間帯別売上高 | E2: 商品別売上高 | I2: 商品別時間帯別売上高 | T2: 客層別時間帯別売上高
A3: 時間帯 | B3: =IF(損益分岐点売上高・投資!B10="","",損益分岐点売上高・投資!B10) -> 2023-11-03 | C3: =IF(損益分岐点売上高・投資!B11="","",損益分岐点売上高・投資!B11) -> 2023-11-04 | E3: 商品名 | F3: =IF(損益分岐点売上高・投資!B10="","",損益分岐点売上高・投資!B10) -> 2023-11-03 | G3: =IF(損益分岐点売上高・投資!B11="","",損益分岐点売上高・投資!B11) -> 2023-11-04 | I3: =IF(損益分岐点売上高・投資!B10="","",損益分岐点売上高・投資!B10) -> 2023-11-03 | J3: 10時前 | K3: 10時 | L3: 11時 | M3: 12時 | N3: 13時 | O3: 14時 | P3: 15時 | Q3: 16時以降 | R3: 合計 | T3: =IF(損益分岐点売上高・投資!B10="","",損益分岐点売上高・投資!B10) -> 2023-11-03 | U3: 10時前 | V3: 10時 | W3: 11時 | X3: 12時 | Y3: 13時 | Z3: 14時 | AA3: 15時 | AB3: 16時以降 | AC3: 合計
A4: 10時前 | B4: =IF(A4="","",SUMIFS(日記帳!$F$4:$F$10003,日記帳!$B$4:$B$10003,">=0",日記帳!$B$4:$B$10003,"<=9:59:59",日記帳!$A$4:$A$10003,B$3)) -> 0 | C4: =IF(A4="","",SUMIFS(日記帳!$F$4:$F$10003,日記帳!$B$4:$B$10003,">=0",日記帳!$B$4:$B$10003,"<=9:59:59",日記帳!$A$4:$A$10003,C$3)) -> 0 | E4: =IF(日記帳!J4="","",日記帳!J4) -> 醤油ラーメン | F4: =IF($E4="","",SUMIFS(日記帳!$F$4:$F$10003,日記帳!$C$4:$C$10003,$E4,日記帳!$A$4:$A$10003,F$3)) -> 0 | G4: =IF($E4="","",SUMIFS(日記帳!$F$4:$F$10003,日記帳!$C$4:$C$10003,$E4,日記帳!$A$4:$A$10003,G$3)) -> 0 | I4: =IF(日記帳!J4="","",日記帳!J4) -> 醤油ラーメン | J4: =IF($I4="","",SUMIFS(日記帳!$F$4:$F$10003,日記帳!$C$4:$C$10003,$I4,日記帳!$A$4:$A$10003,$I$3,日記帳!$B$4:$B$10003,"<=9:59:59" )) -> 0 | K4: =IF($I4="","",SUMIFS(日記帳!$F$4:$F$10003,日記帳!$C$4:$C$10003,$I4,日記帳!$A$4:$A$10003,$I$3,日記帳!$B$4:$B$10003,">=10:00:00",日記帳!$B$4:$B$10003,"<=10:59:59")) -> 0 | L4: =IF($I4="","",SUMIFS(日記帳!$F$4:$F$10003,日記帳!$C$4:$C$10003,$I4,日記帳!$A$4:$A$10003,$I$3,日記帳!$B$4:$B$10003,">=11:00:00",日記帳!$B$4:$B$10003,"<=11:59:59")) -> 0 | M4: =IF($I4="","",SUMIFS(日記帳!$F$4:$F$10003,日記帳!$C$4:$C$10003,$I4,日記帳!$A$4:$A$10003,$I$3,日記帳!$B$4:$B$10003,">=12:00:00",日記帳!$B$4:$B$10003,"<=12:59:59")) -> 0 | N4: =IF($I4="","",SUMIFS(日記帳!$F$4:$F$10003,日記帳!$C$4:$C$10003,$I4,日記帳!$A$4:$A$10003,$I$3,日記帳!$B$4:$B$10003,">=13:00:00",日記帳!$B$4:$B$10003,"<=13:59:59")) -> 0 | O4: =IF($I4="","",SUMIFS(日記帳!$F$4:$F$10003,日記帳!$C$4:$C$10003,$I4,日記帳!$A$4:$A$10003,$I$3,日記帳!$B$4:$B$10003,">=14:00:00",日記帳!$B$4:$B$10003,"<=14:59:59")) -> 0 | P4: =IF($I4="","",SUMIFS(日記帳!$F$4:$F$10003,日記帳!$C$4:$C$10003,$I4,日記帳!$A$4:$A$10003,$I$3,日記帳!$B$4:$B$10003,">=15:00:00",日記帳!$B$4:$B$10003,"<=15:59:59")) -> 0 | Q4: =IF($I4="","",SUMIFS(日記帳!$F$4:$F$10003,日記帳!$C$4:$C$10003,$I4,日記帳!$A$4:$A$10003,$I$3,日記帳!$B$4:$B$10003,">=16:00:00",日記帳!$B$4:$B$10003,"<=23:59:59")) -> 0 | R4: =SUM(J4:Q4) -> 0 | T4: =IF(日記帳!K4="","",日記帳!K4) -> 中学生以下 | U4: =IF($T4="","",SUMIFS(日記帳!$F$4:$F$10003,日記帳!$G$4:$G$10003,$T4,日記帳!$A$4:$A$10003,$T$3,日記帳!$B$4:$B$10003,"<=9:59:59" )) -> 0 | V4: =IF($T4="","",SUMIFS(日記帳!$F$4:$F$10003,日記帳!$G$4:$G$10003,$T4,日記帳!$A$4:$A$10003,$T$3,日記帳!$B$4:$B$10003,">=10:00:00",日記帳!$B$4:$B$10003,"<=10:59:59")) -> 0 | W4: =IF($T4="","",SUMIFS(日記帳!$F$4:$F$10003,日記帳!$G$4:$G$10003,$T4,日記帳!$A$4:$A$10003,$T$3,日記帳!$B$4:$B$10003,">=11:00:00",日記帳!$B$4:$B$10003,"<=11:59:59")) -> 0 | X4: =IF($T4="","",SUMIFS(日記帳!$F$4:$F$10003,日記帳!$G$4:$G$10003,$T4,日記帳!$A$4:$A$10003,$T$3,日記帳!$B$4:$B$10003,">=12:00:00",日記帳!$B$4:$B$10003,"<=12:59:59")) -> 0 | Y4: =IF($T4="","",SUMIFS(日記帳!$F$4:$F$10003,日記帳!$G$4:$G$10003,$T4,日記帳!$A$4:$A$10003,$T$3,日記帳!$B$4:$B$10003,">=13:00:00",日記帳!$B$4:$B$10003,"<=13:59:59")) -> 0 | Z4: =IF($T4="","",SUMIFS(日記帳!$F$4:$F$10003,日記帳!$G$4:$G$10003,$T4,日記帳!$A$4:$A$10003,$T$3,日記帳!$B$4:$B$10003,">=14:00:00",日記帳!$B$4:$B$10003,"<=14:59:59")) -> 0 | AA4: =IF($T4="","",SUMIFS(日記帳!$F$4:$F$10003,日記帳!$G$4:$G$10003,$T4,日記帳!$A$4:$A$10003,$T$3,日記帳!$B$4:$B$10003,">=15:00:00",日記帳!$B$4:$B$10003,"<=15:59:59")) -> 0 | AB4: =IF($T4="","",SUMIFS(日記帳!$F$4:$F$10003,日記帳!$G$4:$G$10003,$T4,日記帳!$A$4:$A$10003,$T$3,日記帳!$B$4:$B$10003,">=16:00:00",日記帳!$B$4:$B$10003,"<=23:59:59")) -> 0 | AC4: =SUM(U4:AB4) -> 0
A5: 10時 | B5: =IF(A5="","",SUMIFS(日記帳!$F$4:$F$10003,日記帳!$B$4:$B$10003,">=10：00：00",日記帳!$B$4:$B$10003,"<=10:59:59",日記帳!$A$4:$A$10003,B$3)) -> 0 | C5: =IF(A5="","",SUMIFS(日記帳!$F$4:$F$10003,日記帳!$B$4:$B$10003,">=10：00：00",日記帳!$B$4:$B$10003,"<=10:59:59",日記帳!$A$4:$A$10003,C$3)) -> 0 | E5: =IF(日記帳!J5="","",日記帳!J5) -> ねぎ醤油ラーメン | F5: =IF($E5="","",SUMIFS(日記帳!$F$4:$F$10003,日記帳!$C$4:$C$10003,$E5,日記帳!$A$4:$A$10003,F$3)) -> 0 | G5: =IF($E5="","",SUMIFS(日記帳!$F$4:$F$10003,日記帳!$C$4:$C$10003,$E5,日記帳!$A$4:$A$10003,G$3)) -> 0 | I5: =IF(日記帳!J5="","",日記帳!J5) -> ねぎ醤油ラーメン | J5: =IF($I5="","",SUMIFS(日記帳!$F$4:$F$10003,日記帳!$C$4:$C$10003,$I5,日記帳!$A$4:$A$10003,$I$3,日記帳!$B$4:$B$10003,"<=9:59:59" )) -> 0 | K5: =IF($I5="","",SUMIFS(日記帳!$F$4:$F$10003,日記帳!$C$4:$C$10003,$I5,日記帳!$A$4:$A$10003,$I$3,日記帳!$B$4:$B$10003,">=10:00:00",日記帳!$B$4:$B$10003,"<=10:59:59")) -> 0 | L5: =IF($I5="","",SUMIFS(日記帳!$F$4:$F$10003,日記帳!$C$4:$C$10003,$I5,日記帳!$A$4:$A$10003,$I$3,日記帳!$B$4:$B$10003,">=11:00:00",日記帳!$B$4:$B$10003,"<=11:59:59")) -> 0 | M5: =IF($I5="","",SUMIFS(日記帳!$F$4:$F$10003,日記帳!$C$4:$C$10003,$I5,日記帳!$A$4:$A$10003,$I$3,日記帳!$B$4:$B$10003,">=12:00:00",日記帳!$B$4:$B$10003,"<=12:59:59")) -> 0 | N5: =IF($I5="","",SUMIFS(日記帳!$F$4:$F$10003,日記帳!$C$4:$C$10003,$I5,日記帳!$A$4:$A$10003,$I$3,日記帳!$B$4:$B$10003,">=13:00:00",日記帳!$B$4:$B$10003,"<=13:59:59")) -> 0 | O5: =IF($I5="","",SUMIFS(日記帳!$F$4:$F$10003,日記帳!$C$4:$C$10003,$I5,日記帳!$A$4:$A$10003,$I$3,日記帳!$B$4:$B$10003,">=14:00:00",日記帳!$B$4:$B$10003,"<=14:59:59")) -> 0 | P5: =IF($I5="","",SUMIFS(日記帳!$F$4:$F$10003,日記帳!$C$4:$C$10003,$I5,日記帳!$A$4:$A$10003,$I$3,日記帳!$B$4:$B$10003,">=15:00:00",日記帳!$B$4:$B$10003,"<=15:59:59")) -> 0 | Q5: =IF($I5="","",SUMIFS(日記帳!$F$4:$F$10003,日記帳!$C$4:$C$10003,$I5,日記帳!$A$4:$A$10003,$I$3,日記帳!$B$4:$B$10003,">=16:00:00",日記帳!$B$4:$B$10003,"<=23:59:59")) -> 0 | R5: =SUM(J5:Q5) -> 0 | T5: =IF(日記帳!K5="","",日記帳!K5) -> 高校生 | U5: =IF($T5="","",SUMIFS(日記帳!$F$4:$F$10003,日記帳!$G$4:$G$10003,$T5,日記帳!$A$4:$A$10003,$T$3,日記帳!$B$4:$B$10003,"<=9:59:59" )) -> 0 | V5: =IF($T5="","",SUMIFS(日記帳!$F$4:$F$10003,日記帳!$G$4:$G$10003,$T5,日記帳!$A$4:$A$10003,$T$3,日記帳!$B$4:$B$10003,">=10:00:00",日記帳!$B$4:$B$10003,"<=10:59:59")) -> 0 | W5: =IF($T5="","",SUMIFS(日記帳!$F$4:$F$10003,日記帳!$G$4:$G$10003,$T5,日記帳!$A$4:$A$10003,$T$3,日記帳!$B$4:$B$10003,">=11:00:00",日記帳!$B$4:$B$10003,"<=11:59:59")) -> 0 | X5: =IF($T5="","",SUMIFS(日記帳!$F$4:$F$10003,日記帳!$G$4:$G$10003,$T5,日記帳!$A$4:$A$10003,$T$3,日記帳!$B$4:$B$10003,">=12:00:00",日記帳!$B$4:$B$10003,"<=12:59:59")) -> 0 | Y5: =IF($T5="","",SUMIFS(日記帳!$F$4:$F$10003,日記帳!$G$4:$G$10003,$T5,日記帳!$A$4:$A$10003,$T$3,日記帳!$B$4:$B$10003,">=13:00:00",日記帳!$B$4:$B$10003,"<=13:59:59")) -> 0 | Z5: =IF($T5="","",SUMIFS(日記帳!$F$4:$F$10003,日記帳!$G$4:$G$10003,$T5,日記帳!$A$4:$A$10003,$T$3,日記帳!$B$4:$B$10003,">=14:00:00",日記帳!$B$4:$B$10003,"<=14:59:59")) -> 0 | AA5: =IF($T5="","",SUMIFS(日記帳!$F$4:$F$10003,日記帳!$G$4:$G$10003,$T5,日記帳!$A$4:$A$10003,$T$3,日記帳!$B$4:$B$10003,">=15:00:00",日記帳!$B$4:$B$10003,"<=15:59:59")) -> 0 | AB5: =IF($T5="","",SUMIFS(日記帳!$F$4:$F$10003,日記帳!$G$4:$G$10003,$T5,日記帳!$A$4:$A$10003,$T$3,日記帳!$B$4:$B$10003,">=16:00:00",日記帳!$B$4:$B$10003,"<=23:59:59")) -> 0 | AC5: =SUM(U5:AB5) -> 0
A6: 11時 | B6: =IF(A6="","",SUMIFS(日記帳!$F$4:$F$10003,日記帳!$B$4:$B$10003,">=11:00:00",日記帳!$B$4:$B$10003,"<=11:59:59",日記帳!$A$4:$A$10003,B$3)) -> 0 | C6: =IF(A6="","",SUMIFS(日記帳!$F$4:$F$10003,日記帳!$B$4:$B$10003,">=11:00:00",日記帳!$B$4:$B$10003,"<=11:59:59",日記帳!$A$4:$A$10003,C$3)) -> 0 | E6: =IF(日記帳!J6="","",日記帳!J6) ->  | F6: =IF($E6="","",SUMIFS(日記帳!$F$4:$F$10003,日記帳!$C$4:$C$10003,$E6,日記帳!$A$4:$A$10003,F$3)) ->  | G6: =IF($E6="","",SUMIFS(日記帳!$F$4:$F$10003,日記帳!$C$4:$C$10003,$E6,日記帳!$A$4:$A$10003,G$3)) ->  | I6: =IF(日記帳!J6="","",日記帳!J6) ->  | K6: =IF($I6="","",SUMIFS(日記帳!$F$4:$F$10003,日記帳!$C$4:$C$10003,$I6,日記帳!$A$4:$A$10003,$I$3,日記帳!#REF!,K$3 )) ->  | L6: =IF($I6="","",SUMIFS(日記帳!$F$4:$F$10003,日記帳!$C$4:$C$10003,$I6,日記帳!$A$4:$A$10003,$I$3,日記帳!#REF!,L$3 )) ->  | M6: =IF($I6="","",SUMIFS(日記帳!$F$4:$F$10003,日記帳!$C$4:$C$10003,$I6,日記帳!$A$4:$A$10003,$I$3,日記帳!#REF!,M$3 )) ->  | N6: =IF($I6="","",SUMIFS(日記帳!$F$4:$F$10003,日記帳!$C$4:$C$10003,$I6,日記帳!$A$4:$A$10003,$I$3,日記帳!#REF!,N$3 )) ->  | O6: =IF($I6="","",SUMIFS(日記帳!$F$4:$F$10003,日記帳!$C$4:$C$10003,$I6,日記帳!$A$4:$A$10003,$I$3,日記帳!#REF!,O$3 )) ->  | P6: =IF($I6="","",SUMIFS(日記帳!$F$4:$F$10003,日記帳!$C$4:$C$10003,$I6,日記帳!$A$4:$A$10003,$I$3,日記帳!#REF!,P$3 )) ->  | Q6: =IF($I6="","",SUMIFS(日記帳!$F$4:$F$10003,日記帳!$C$4:$C$10003,$I6,日記帳!$A$4:$A$10003,$I$3,日記帳!#REF!,Q$3 )) ->  | R6: 0 | T6: =IF(日記帳!K6="","",日記帳!K6) -> 大学生 | U6: =IF($T6="","",SUMIFS(日記帳!$F$4:$F$10003,日記帳!$G$4:$G$10003,$T6,日記帳!$A$4:$A$10003,$T$3,日記帳!$B$4:$B$10003,"<=9:59:59" )) -> 0 | V6: =IF($T6="","",SUMIFS(日記帳!$F$4:$F$10003,日記帳!$G$4:$G$10003,$T6,日記帳!$A$4:$A$10003,$T$3,日記帳!$B$4:$B$10003,">=10:00:00",日記帳!$B$4:$B$10003,"<=10:59:59")) -> 0 | W6: =IF($T6="","",SUMIFS(日記帳!$F$4:$F$10003,日記帳!$G$4:$G$10003,$T6,日記帳!$A$4:$A$10003,$T$3,日記帳!$B$4:$B$10003,">=11:00:00",日記帳!$B$4:$B$10003,"<=11:59:59")) -> 0 | X6: =IF($T6="","",SUMIFS(日記帳!$F$4:$F$10003,日記帳!$G$4:$G$10003,$T6,日記帳!$A$4:$A$10003,$T$3,日記帳!$B$4:$B$10003,">=12:00:00",日記帳!$B$4:$B$10003,"<=12:59:59")) -> 0 | Y6: =IF($T6="","",SUMIFS(日記帳!$F$4:$F$10003,日記帳!$G$4:$G$10003,$T6,日記帳!$A$4:$A$10003,$T$3,日記帳!$B$4:$B$10003,">=13:00:00",日記帳!$B$4:$B$10003,"<=13:59:59")) -> 0 | Z6: =IF($T6="","",SUMIFS(日記帳!$F$4:$F$10003,日記帳!$G$4:$G$10003,$T6,日記帳!$A$4:$A$10003,$T$3,日記帳!$B$4:$B$10003,">=14:00:00",日記帳!$B$4:$B$10003,"<=14:59:59")) -> 0 | AA6: =IF($T6="","",SUMIFS(日記帳!$F$4:$F$10003,日記帳!$G$4:$G$10003,$T6,日記帳!$A$4:$A$10003,$T$3,日記帳!$B$4:$B$10003,">=15:00:00",日記帳!$B$4:$B$10003,"<=15:59:59")) -> 0 | AB6: =IF($T6="","",SUMIFS(日記帳!$F$4:$F$10003,日記帳!$G$4:$G$10003,$T6,日記帳!$A$4:$A$10003,$T$3,日記帳!$B$4:$B$10003,">=16:00:00",日記帳!$B$4:$B$10003,"<=23:59:59")) -> 0 | AC6: 0
A7: 12時 | B7: =IF(A7="","",SUMIFS(日記帳!$F$4:$F$10003,日記帳!$B$4:$B$10003,">=12:00:00",日記帳!$B$4:$B$10003,"<=12:59:59",日記帳!$A$4:$A$10003,B$3)) -> 0 | C7: =IF(A7="","",SUMIFS(日記帳!$F$4:$F$10003,日記帳!$B$4:$B$10003,">=12:00:00",日記帳!$B$4:$B$10003,"<=12:59:59",日記帳!$A$4:$A$10003,C$3)) -> 0 | E7: =IF(日記帳!J7="","",日記帳!J7) ->  | F7: =IF($E7="","",SUMIFS(日記帳!$F$4:$F$10003,日記帳!$C$4:$C$10003,$E7,日記帳!$A$4:$A$10003,F$3)) ->  | G7: =IF($E7="","",SUMIFS(日記帳!$F$4:$F$10003,日記帳!$C$4:$C$10003,$E7,日記帳!$A$4:$A$10003,G$3)) ->  | I7: =IF(日記帳!J7="","",日記帳!J7) ->  | K7: =IF($I7="","",SUMIFS(日記帳!$F$4:$F$10003,日記帳!$C$4:$C$10003,$I7,日記帳!$A$4:$A$10003,$I$3,日記帳!#REF!,K$3 )) ->  | L7: =IF($I7="","",SUMIFS(日記帳!$F$4:$F$10003,日記帳!$C$4:$C$10003,$I7,日記帳!$A$4:$A$10003,$I$3,日記帳!#REF!,L$3 )) ->  | M7: =IF($I7="","",SUMIFS(日記帳!$F$4:$F$10003,日記帳!$C$4:$C$10003,$I7,日記帳!$A$4:$A$10003,$I$3,日記帳!#REF!,M$3 )) ->  | N7: =IF($I7="","",SUMIFS(日記帳!$F$4:$F$10003,日記帳!$C$4:$C$10003,$I7,日記帳!$A$4:$A$10003,$I$3,日記帳!#REF!,N$3 )) ->  | O7: =IF($I7="","",SUMIFS(日記帳!$F$4:$F$10003,日記帳!$C$4:$C$10003,$I7,日記帳!$A$4:$A$10003,$I$3,日記帳!#REF!,O$3 )) ->  | P7: =IF($I7="","",SUMIFS(日記帳!$F$4:$F$10003,日記帳!$C$4:$C$10003,$I7,日記帳!$A$4:$A$10003,$I$3,日記帳!#REF!,P$3 )) ->  | Q7: =IF($I7="","",SUMIFS(日記帳!$F$4:$F$10003,日記帳!$C$4:$C$10003,$I7,日記帳!$A$4:$A$10003,$I$3,日記帳!#REF!,Q$3 )) ->  | R7: 0 | T7: =IF(日記帳!K7="","",日記帳!K7) -> 地域の方 | U7: =IF($T7="","",SUMIFS(日記帳!$F$4:$F$10003,日記帳!$G$4:$G$10003,$T7,日記帳!$A$4:$A$10003,$T$3,日記帳!$B$4:$B$10003,"<=9:59:59" )) -> 0 | V7: =IF($T7="","",SUMIFS(日記帳!$F$4:$F$10003,日記帳!$G$4:$G$10003,$T7,日記帳!$A$4:$A$10003,$T$3,日記帳!$B$4:$B$10003,">=10:00:00",日記帳!$B$4:$B$10003,"<=10:59:59")) -> 0 | W7: =IF($T7="","",SUMIFS(日記帳!$F$4:$F$10003,日記帳!$G$4:$G$10003,$T7,日記帳!$A$4:$A$10003,$T$3,日記帳!$B$4:$B$10003,">=11:00:00",日記帳!$B$4:$B$10003,"<=11:59:59")) -> 0 | X7: =IF($T7="","",SUMIFS(日記帳!$F$4:$F$10003,日記帳!$G$4:$G$10003,$T7,日記帳!$A$4:$A$10003,$T$3,日記帳!$B$4:$B$10003,">=12:00:00",日記帳!$B$4:$B$10003,"<=12:59:59")) -> 0 | Y7: =IF($T7="","",SUMIFS(日記帳!$F$4:$F$10003,日記帳!$G$4:$G$10003,$T7,日記帳!$A$4:$A$10003,$T$3,日記帳!$B$4:$B$10003,">=13:00:00",日記帳!$B$4:$B$10003,"<=13:59:59")) -> 0 | Z7: =IF($T7="","",SUMIFS(日記帳!$F$4:$F$10003,日記帳!$G$4:$G$10003,$T7,日記帳!$A$4:$A$10003,$T$3,日記帳!$B$4:$B$10003,">=14:00:00",日記帳!$B$4:$B$10003,"<=14:59:59")) -> 0 | AA7: =IF($T7="","",SUMIFS(日記帳!$F$4:$F$10003,日記帳!$G$4:$G$10003,$T7,日記帳!$A$4:$A$10003,$T$3,日記帳!$B$4:$B$10003,">=15:00:00",日記帳!$B$4:$B$10003,"<=15:59:59")) -> 0 | AB7: =IF($T7="","",SUMIFS(日記帳!$F$4:$F$10003,日記帳!$G$4:$G$10003,$T7,日記帳!$A$4:$A$10003,$T$3,日記帳!$B$4:$B$10003,">=16:00:00",日記帳!$B$4:$B$10003,"<=23:59:59")) -> 0 | AC7: 0
A8: 13時 | B8: =IF(A8="","",SUMIFS(日記帳!$F$4:$F$10003,日記帳!$B$4:$B$10003,">=13:00:00",日記帳!$B$4:$B$10003,"<=13:59:59",日記帳!$A$4:$A$10003,B$3)) -> 0 | C8: =IF(A8="","",SUMIFS(日記帳!$F$4:$F$10003,日記帳!$B$4:$B$10003,">=13:00:00",日記帳!$B$4:$B$10003,"<=13:59:59",日記帳!$A$4:$A$10003,C$3)) -> 0 | E8: =IF(日記帳!J8="","",日記帳!J8) ->  | F8: =IF($E8="","",SUMIFS(日記帳!$F$4:$F$10003,日記帳!$C$4:$C$10003,$E8,日記帳!$A$4:$A$10003,F$3)) ->  | G8: =IF($E8="","",SUMIFS(日記帳!$F$4:$F$10003,日記帳!$C$4:$C$10003,$E8,日記帳!$A$4:$A$10003,G$3)) ->  | I8: =IF(日記帳!J8="","",日記帳!J8) ->  | K8: =IF($I8="","",SUMIFS(日記帳!$F$4:$F$10003,日記帳!$C$4:$C$10003,$I8,日記帳!$A$4:$A$10003,$I$3,日記帳!#REF!,K$3 )) ->  | L8: =IF($I8="","",SUMIFS(日記帳!$F$4:$F$10003,日記帳!$C$4:$C$10003,$I8,日記帳!$A$4:$A$10003,$I$3,日記帳!#REF!,L$3 )) ->  | M8: =IF($I8="","",SUMIFS(日記帳!$F$4:$F$10003,日記帳!$C$4:$C$10003,$I8,日記帳!$A$4:$A$10003,$I$3,日記帳!#REF!,M$3 )) ->  | N8: =IF($I8="","",SUMIFS(日記帳!$F$4:$F$10003,日記帳!$C$4:$C$10003,$I8,日記帳!$A$4:$A$10003,$I$3,日記帳!#REF!,N$3 )) ->  | O8: =IF($I8="","",SUMIFS(日記帳!$F$4:$F$10003,日記帳!$C$4:$C$10003,$I8,日記帳!$A$4:$A$10003,$I$3,日記帳!#REF!,O$3 )) ->  | P8: =IF($I8="","",SUMIFS(日記帳!$F$4:$F$10003,日記帳!$C$4:$C$10003,$I8,日記帳!$A$4:$A$10003,$I$3,日記帳!#REF!,P$3 )) ->  | Q8: =IF($I8="","",SUMIFS(日記帳!$F$4:$F$10003,日記帳!$C$4:$C$10003,$I8,日記帳!$A$4:$A$10003,$I$3,日記帳!#REF!,Q$3 )) ->  | R8: 0 | T8: =IF(日記帳!U8="","",日記帳!U8) ->  | U8: =IF($T8="","",SUMIFS(日記帳!$F$4:$F$10003,日記帳!$G$4:$G$10003,$T8,日記帳!$A$4:$A$10003,$T$3,日記帳!$B$4:$B$10003,"<=9:59:59" )) ->  | V8: =IF($T8="","",SUMIFS(日記帳!$F$4:$F$10003,日記帳!$G$4:$G$10003,$T8,日記帳!$A$4:$A$10003,$T$3,日記帳!$B$4:$B$10003,">=10:00:00",日記帳!$B$4:$B$10003,"<=10:59:59")) ->  | W8: =IF($T8="","",SUMIFS(日記帳!$F$4:$F$10003,日記帳!$G$4:$G$10003,$T8,日記帳!$A$4:$A$10003,$T$3,日記帳!$B$4:$B$10003,">=11:00:00",日記帳!$B$4:$B$10003,"<=11:59:59")) ->  | X8: =IF($T8="","",SUMIFS(日記帳!$F$4:$F$10003,日記帳!$G$4:$G$10003,$T8,日記帳!$A$4:$A$10003,$T$3,日記帳!$B$4:$B$10003,">=12:00:00",日記帳!$B$4:$B$10003,"<=12:59:59")) ->  | Y8: =IF($T8="","",SUMIFS(日記帳!$F$4:$F$10003,日記帳!$G$4:$G$10003,$T8,日記帳!$A$4:$A$10003,$T$3,日記帳!$B$4:$B$10003,">=13:00:00",日記帳!$B$4:$B$10003,"<=13:59:59")) ->  | Z8: =IF($T8="","",SUMIFS(日記帳!$F$4:$F$10003,日記帳!$G$4:$G$10003,$T8,日記帳!$A$4:$A$10003,$T$3,日記帳!$B$4:$B$10003,">=14:00:00",日記帳!$B$4:$B$10003,"<=14:59:59")) ->  | AA8: =IF($T8="","",SUMIFS(日記帳!$F$4:$F$10003,日記帳!$G$4:$G$10003,$T8,日記帳!$A$4:$A$10003,$T$3,日記帳!$B$4:$B$10003,">=15:00:00",日記帳!$B$4:$B$10003,"<=15:59:59")) ->  | AB8: =IF($T8="","",SUMIFS(日記帳!$F$4:$F$10003,日記帳!$G$4:$G$10003,$T8,日記帳!$A$4:$A$10003,$T$3,日記帳!$B$4:$B$10003,">=16:00:00",日記帳!$B$4:$B$10003,"<=23:59:59")) ->  | AC8: 0
A9: 14時 | B9: =IF(A9="","",SUMIFS(日記帳!$F$4:$F$10003,日記帳!$B$4:$B$10003,">=14:00:00",日記帳!$B$4:$B$10003,"<=14:59:59",日記帳!$A$4:$A$10003,B$3)) -> 0 | C9: =IF(A9="","",SUMIFS(日記帳!$F$4:$F$10003,日記帳!$B$4:$B$10003,">=14:00:00",日記帳!$B$4:$B$10003,"<=14:59:59",日記帳!$A$4:$A$10003,C$3)) -> 0 | E9: =IF(日記帳!J9="","",日記帳!J9) ->  | F9: =IF($E9="","",SUMIFS(日記帳!$F$4:$F$10003,日記帳!$C$4:$C$10003,$E9,日記帳!$A$4:$A$10003,F$3)) ->  | G9: =IF($E9="","",SUMIFS(日記帳!$F$4:$F$10003,日記帳!$C$4:$C$10003,$E9,日記帳!$A$4:$A$10003,G$3)) ->  | I9: =IF(日記帳!J9="","",日記帳!J9) ->  | K9: =IF($I9="","",SUMIFS(日記帳!$F$4:$F$10003,日記帳!$C$4:$C$10003,$I9,日記帳!$A$4:$A$10003,$I$3,日記帳!#REF!,K$3 )) ->  | L9: =IF($I9="","",SUMIFS(日記帳!$F$4:$F$10003,日記帳!$C$4:$C$10003,$I9,日記帳!$A$4:$A$10003,$I$3,日記帳!#REF!,L$3 )) ->  | M9: =IF($I9="","",SUMIFS(日記帳!$F$4:$F$10003,日記帳!$C$4:$C$10003,$I9,日記帳!$A$4:$A$10003,$I$3,日記帳!#REF!,M$3 )) ->  | N9: =IF($I9="","",SUMIFS(日記帳!$F$4:$F$10003,日記帳!$C$4:$C$10003,$I9,日記帳!$A$4:$A$10003,$I$3,日記帳!#REF!,N$3 )) ->  | O9: =IF($I9="","",SUMIFS(日記帳!$F$4:$F$10003,日記帳!$C$4:$C$10003,$I9,日記帳!$A$4:$A$10003,$I$3,日記帳!#REF!,O$3 )) ->  | P9: =IF($I9="","",SUMIFS(日記帳!$F$4:$F$10003,日記帳!$C$4:$C$10003,$I9,日記帳!$A$4:$A$10003,$I$3,日記帳!#REF!,P$3 )) ->  | Q9: =IF($I9="","",SUMIFS(日記帳!$F$4:$F$10003,日記帳!$C$4:$C$10003,$I9,日記帳!$A$4:$A$10003,$I$3,日記帳!#REF!,Q$3 )) ->  | R9: 0 | T9: =IF(日記帳!U9="","",日記帳!U9) ->  | U9: =IF($T9="","",SUMIFS(日記帳!$F$4:$F$10003,日記帳!$G$4:$G$10003,$T9,日記帳!$A$4:$A$10003,$T$3,日記帳!$B$4:$B$10003,"<=9:59:59" )) ->  | V9: =IF($T9="","",SUMIFS(日記帳!$F$4:$F$10003,日記帳!$G$4:$G$10003,$T9,日記帳!$A$4:$A$10003,$T$3,日記帳!$B$4:$B$10003,">=10:00:00",日記帳!$B$4:$B$10003,"<=10:59:59")) ->  | W9: =IF($T9="","",SUMIFS(日記帳!$F$4:$F$10003,日記帳!$G$4:$G$10003,$T9,日記帳!$A$4:$A$10003,$T$3,日記帳!$B$4:$B$10003,">=11:00:00",日記帳!$B$4:$B$10003,"<=11:59:59")) ->  | X9: =IF($T9="","",SUMIFS(日記帳!$F$4:$F$10003,日記帳!$G$4:$G$10003,$T9,日記帳!$A$4:$A$10003,$T$3,日記帳!$B$4:$B$10003,">=12:00:00",日記帳!$B$4:$B$10003,"<=12:59:59")) ->  | Y9: =IF($T9="","",SUMIFS(日記帳!$F$4:$F$10003,日記帳!$G$4:$G$10003,$T9,日記帳!$A$4:$A$10003,$T$3,日記帳!$B$4:$B$10003,">=13:00:00",日記帳!$B$4:$B$10003,"<=13:59:59")) ->  | Z9: =IF($T9="","",SUMIFS(日記帳!$F$4:$F$10003,日記帳!$G$4:$G$10003,$T9,日記帳!$A$4:$A$10003,$T$3,日記帳!$B$4:$B$10003,">=14:00:00",日記帳!$B$4:$B$10003,"<=14:59:59")) ->  | AA9: =IF($T9="","",SUMIFS(日記帳!$F$4:$F$10003,日記帳!$G$4:$G$10003,$T9,日記帳!$A$4:$A$10003,$T$3,日記帳!$B$4:$B$10003,">=15:00:00",日記帳!$B$4:$B$10003,"<=15:59:59")) ->  | AB9: =IF($T9="","",SUMIFS(日記帳!$F$4:$F$10003,日記帳!$G$4:$G$10003,$T9,日記帳!$A$4:$A$10003,$T$3,日記帳!$B$4:$B$10003,">=16:00:00",日記帳!$B$4:$B$10003,"<=23:59:59")) ->  | AC9: 0
A10: 15時 | B10: =IF(A10="","",SUMIFS(日記帳!$F$4:$F$10003,日記帳!$B$4:$B$10003,">=15:00:00",日記帳!$B$4:$B$10003,"<=15:59:59",日記帳!$A$4:$A$10003,B$3)) -> 0 | C10: =IF(A10="","",SUMIFS(日記帳!$F$4:$F$10003,日記帳!$B$4:$B$10003,">=15:00:00",日記帳!$B$4:$B$10003,"<=15:59:59",日記帳!$A$4:$A$10003,C$3)) -> 0 | R10: 0 | U10: =IF($T10="","",SUMIFS(日記帳!$F$4:$F$10003,日記帳!$G$4:$G$10003,$T10,日記帳!$A$4:$A$10003,$T$3,日記帳!$B$4:$B$10003,"<=9:59:59" )) ->  | V10: =IF($T10="","",SUMIFS(日記帳!$F$4:$F$10003,日記帳!$G$4:$G$10003,$T10,日記帳!$A$4:$A$10003,$T$3,日記帳!$B$4:$B$10003,">=10:00:00",日記帳!$B$4:$B$10003,"<=10:59:59")) ->  | W10: =IF($T10="","",SUMIFS(日記帳!$F$4:$F$10003,日記帳!$G$4:$G$10003,$T10,日記帳!$A$4:$A$10003,$T$3,日記帳!$B$4:$B$10003,">=11:00:00",日記帳!$B$4:$B$10003,"<=11:59:59")) ->  | X10: =IF($T10="","",SUMIFS(日記帳!$F$4:$F$10003,日記帳!$G$4:$G$10003,$T10,日記帳!$A$4:$A$10003,$T$3,日記帳!$B$4:$B$10003,">=12:00:00",日記帳!$B$4:$B$10003,"<=12:59:59")) ->  | Y10: =IF($T10="","",SUMIFS(日記帳!$F$4:$F$10003,日記帳!$G$4:$G$10003,$T10,日記帳!$A$4:$A$10003,$T$3,日記帳!$B$4:$B$10003,">=13:00:00",日記帳!$B$4:$B$10003,"<=13:59:59")) ->  | Z10: =IF($T10="","",SUMIFS(日記帳!$F$4:$F$10003,日記帳!$G$4:$G$10003,$T10,日記帳!$A$4:$A$10003,$T$3,日記帳!$B$4:$B$10003,">=14:00:00",日記帳!$B$4:$B$10003,"<=14:59:59")) ->  | AA10: =IF($T10="","",SUMIFS(日記帳!$F$4:$F$10003,日記帳!$G$4:$G$10003,$T10,日記帳!$A$4:$A$10003,$T$3,日記帳!$B$4:$B$10003,">=15:00:00",日記帳!$B$4:$B$10003,"<=15:59:59")) ->  | AB10: =IF($T10="","",SUMIFS(日記帳!$F$4:$F$10003,日記帳!$G$4:$G$10003,$T10,日記帳!$A$4:$A$10003,$T$3,日記帳!$B$4:$B$10003,">=16:00:00",日記帳!$B$4:$B$10003,"<=23:59:59")) ->  | AC10: 0
A11: 16時以降 | B11: =IF(A11="","",SUMIFS(日記帳!$F$4:$F$10003,日記帳!$B$4:$B$10003,">=16:00:00",日記帳!$B$4:$B$10003,"<=23:59:59",日記帳!$A$4:$A$10003,B$3)) -> 0 | C11: =IF(A11="","",SUMIFS(日記帳!$F$4:$F$10003,日記帳!$B$4:$B$10003,">=16:00:00",日記帳!$B$4:$B$10003,"<=23:59:59",日記帳!$A$4:$A$10003,C$3)) -> 0 | E11: =IF(日記帳!J10="","",日記帳!J10) ->  | F11: =IF($E11="","",SUMIFS(日記帳!$F$4:$F$10003,日記帳!$C$4:$C$10003,$E11,日記帳!$A$4:$A$10003,F$3)) ->  | G11: =IF($E11="","",SUMIFS(日記帳!$F$4:$F$10003,日記帳!$C$4:$C$10003,$E11,日記帳!$A$4:$A$10003,G$3)) ->  | I11: =IF(日記帳!J10="","",日記帳!J10) ->  | K11: =IF($I11="","",SUMIFS(日記帳!$F$4:$F$10003,日記帳!$C$4:$C$10003,$I11,日記帳!$A$4:$A$10003,$I$3,日記帳!#REF!,K$3 )) ->  | L11: =IF($I11="","",SUMIFS(日記帳!$F$4:$F$10003,日記帳!$C$4:$C$10003,$I11,日記帳!$A$4:$A$10003,$I$3,日記帳!#REF!,L$3 )) ->  | M11: =IF($I11="","",SUMIFS(日記帳!$F$4:$F$10003,日記帳!$C$4:$C$10003,$I11,日記帳!$A$4:$A$10003,$I$3,日記帳!#REF!,M$3 )) ->  | N11: =IF($I11="","",SUMIFS(日記帳!$F$4:$F$10003,日記帳!$C$4:$C$10003,$I11,日記帳!$A$4:$A$10003,$I$3,日記帳!#REF!,N$3 )) ->  | O11: =IF($I11="","",SUMIFS(日記帳!$F$4:$F$10003,日記帳!$C$4:$C$10003,$I11,日記帳!$A$4:$A$10003,$I$3,日記帳!#REF!,O$3 )) ->  | P11: =IF($I11="","",SUMIFS(日記帳!$F$4:$F$10003,日記帳!$C$4:$C$10003,$I11,日記帳!$A$4:$A$10003,$I$3,日記帳!#REF!,P$3 )) ->  | Q11: =IF($I11="","",SUMIFS(日記帳!$F$4:$F$10003,日記帳!$C$4:$C$10003,$I11,日記帳!$A$4:$A$10003,$I$3,日記帳!#REF!,Q$3 )) ->  | R11: 0 | T11: =IF(日記帳!U10="","",日記帳!U10) ->  | U11: =IF($T11="","",SUMIFS(日記帳!$F$4:$F$10003,日記帳!$G$4:$G$10003,$T11,日記帳!$A$4:$A$10003,$T$3,日記帳!$B$4:$B$10003,"<=9:59:59" )) ->  | V11: =IF($T11="","",SUMIFS(日記帳!$F$4:$F$10003,日記帳!$G$4:$G$10003,$T11,日記帳!$A$4:$A$10003,$T$3,日記帳!$B$4:$B$10003,">=10:00:00",日記帳!$B$4:$B$10003,"<=10:59:59")) ->  | W11: =IF($T11="","",SUMIFS(日記帳!$F$4:$F$10003,日記帳!$G$4:$G$10003,$T11,日記帳!$A$4:$A$10003,$T$3,日記帳!$B$4:$B$10003,">=11:00:00",日記帳!$B$4:$B$10003,"<=11:59:59")) ->  | X11: =IF($T11="","",SUMIFS(日記帳!$F$4:$F$10003,日記帳!$G$4:$G$10003,$T11,日記帳!$A$4:$A$10003,$T$3,日記帳!$B$4:$B$10003,">=12:00:00",日記帳!$B$4:$B$10003,"<=12:59:59")) ->  | Y11: =IF($T11="","",SUMIFS(日記帳!$F$4:$F$10003,日記帳!$G$4:$G$10003,$T11,日記帳!$A$4:$A$10003,$T$3,日記帳!$B$4:$B$10003,">=13:00:00",日記帳!$B$4:$B$10003,"<=13:59:59")) ->  | Z11: =IF($T11="","",SUMIFS(日記帳!$F$4:$F$10003,日記帳!$G$4:$G$10003,$T11,日記帳!$A$4:$A$10003,$T$3,日記帳!$B$4:$B$10003,">=14:00:00",日記帳!$B$4:$B$10003,"<=14:59:59")) ->  | AA11: =IF($T11="","",SUMIFS(日記帳!$F$4:$F$10003,日記帳!$G$4:$G$10003,$T11,日記帳!$A$4:$A$10003,$T$3,日記帳!$B$4:$B$10003,">=15:00:00",日記帳!$B$4:$B$10003,"<=15:59:59")) ->  | AB11: =IF($T11="","",SUMIFS(日記帳!$F$4:$F$10003,日記帳!$G$4:$G$10003,$T11,日記帳!$A$4:$A$10003,$T$3,日記帳!$B$4:$B$10003,">=16:00:00",日記帳!$B$4:$B$10003,"<=23:59:59")) ->  | AC11: 0
A12: 合計 | B12: =IF(B$3="","",SUM(B4:B11)) -> 0 | C12: =IF(C$3="","",SUM(C4:C11)) -> 0 | E12: 合計 | F12: =IF(F$3="","",SUM(F4:F11)) -> 0 | G12: =IF(G$3="","",SUM(G4:G11)) -> 0 | I12: 合計 | J12: =SUM(J4:J11) -> 0 | K12: =SUM(K4:K11) -> 0 | L12: =SUM(L4:L11) -> 0 | M12: 0 | N12: 0 | O12: 0 | P12: 0 | Q12: 0 | R12: =SUM(R4:R11) -> 0 | T12: 合計 | U12: =SUM(U4:U11) -> 0 | V12: =SUM(V4:V11) -> 0 | W12: =SUM(W4:W11) -> 0 | X12: 0 | Y12: 0 | Z12: 0 | AA12: 0 | AB12: 0 | AC12: =SUM(AC4:AC11) -> 0
A14: 客層別売上高 | I14: 商品別時間帯別売上高 | T14: 客層別時間帯別売上高
A15: 客層 | B15: =IF(損益分岐点売上高・投資!B10="","",損益分岐点売上高・投資!B10) -> 2023-11-03 | C15: =IF(損益分岐点売上高・投資!B11="","",損益分岐点売上高・投資!B11) -> 2023-11-04 | I15: =IF(損益分岐点売上高・投資!B11="","",損益分岐点売上高・投資!B11) -> 2023-11-04 | J15: 10時前 | K15: 10時 | L15: 11時 | M15: 12時 | N15: 13時 | O15: 14時 | P15: 15時 | Q15: 16時以降 | R15: 合計 | T15: =IF(損益分岐点売上高・投資!B11="","",損益分岐点売上高・投資!B11) -> 2023-11-04 | U15: 10時前 | V15: 10時 | W15: 11時 | X15: 12時 | Y15: 13時 | Z15: 14時 | AA15: 15時 | AB15: 16時以降 | AC15: 合計
A16: =IF(日記帳!$K4="","",日記帳!K4) -> 中学生以下 | B16: =IF($A16="","",SUMIFS(日記帳!$F$4:$F$10003,日記帳!$G$4:$G$10003,$A16,日記帳!$A$4:$A$10003,B$15)) -> 0 | C16: =IF($A16="","",SUMIFS(日記帳!$F$4:$F$10003,日記帳!$G$4:$G$10003,$A16,日記帳!$A$4:$A$10003,C$15)) -> 0 | I16: =IF(日記帳!J4="","",日記帳!J4) -> 醤油ラーメン | J16: =IF($I16="","",SUMIFS(日記帳!$F$4:$F$10003,日記帳!$C$4:$C$10003,$I16,日記帳!$A$4:$A$10003,$I$15,日記帳!$B$4:$B$10003,"<=9:59:59" )) -> 0 | K16: =IF($I16="","",SUMIFS(日記帳!$F$4:$F$10003,日記帳!$C$4:$C$10003,$I16,日記帳!$A$4:$A$10003,$I$15,日記帳!$B$4:$B$10003,">=10:00:00",日記帳!$B$4:$B$10003,"<=10:59:59")) -> 0 | L16: =IF($I16="","",SUMIFS(日記帳!$F$4:$F$10003,日記帳!$C$4:$C$10003,$I16,日記帳!$A$4:$A$10003,$I$15,日記帳!$B$4:$B$10003,">=11:00:00",日記帳!$B$4:$B$10003,"<=11:59:59")) -> 0 | M16: =IF($I16="","",SUMIFS(日記帳!$F$4:$F$10003,日記帳!$C$4:$C$10003,$I16,日記帳!$A$4:$A$10003,$I$15,日記帳!$B$4:$B$10003,">=12:00:00",日記帳!$B$4:$B$10003,"<=12:59:59")) -> 0 | N16: =IF($I16="","",SUMIFS(日記帳!$F$4:$F$10003,日記帳!$C$4:$C$10003,$I16,日記帳!$A$4:$A$10003,$I$15,日記帳!$B$4:$B$10003,">=13:00:00",日記帳!$B$4:$B$10003,"<=13:59:59")) -> 0 | O16: =IF($I16="","",SUMIFS(日記帳!$F$4:$F$10003,日記帳!$C$4:$C$10003,$I16,日記帳!$A$4:$A$10003,$I$15,日記帳!$B$4:$B$10003,">=14:00:00",日記帳!$B$4:$B$10003,"<=14:59:59")) -> 0 | P16: =IF($I16="","",SUMIFS(日記帳!$F$4:$F$10003,日記帳!$C$4:$C$10003,$I16,日記帳!$A$4:$A$10003,$I$15,日記帳!$B$4:$B$10003,">=15:00:00",日記帳!$B$4:$B$10003,"<=15:59:59")) -> 0 | Q16: =IF($I16="","",SUMIFS(日記帳!$F$4:$F$10003,日記帳!$C$4:$C$10003,$I16,日記帳!$A$4:$A$10003,$I$15,日記帳!$B$4:$B$10003,">=16:00:00",日記帳!$B$4:$B$10003,"<=23:59:59")) -> 0 | R16: =SUM(J16:Q16) -> 0 | T16: =IF(日記帳!K4="","",日記帳!K4) -> 中学生以下 | U16: =IF($T16="","",SUMIFS(日記帳!$F$4:$F$10003,日記帳!$G$4:$G$10003,$T16,日記帳!$A$4:$A$10003,$T$15,日記帳!$B$4:$B$10003,"<=9:59:59" )) -> 0 | V16: =IF($T16="","",SUMIFS(日記帳!$F$4:$F$10003,日記帳!$G$4:$G$10003,$T16,日記帳!$A$4:$A$10003,$T$15,日記帳!$B$4:$B$10003,">=10:00:00",日記帳!$B$4:$B$10003,"<=10:59:59")) -> 0 | W16: =IF($T16="","",SUMIFS(日記帳!$F$4:$F$10003,日記帳!$G$4:$G$10003,$T16,日記帳!$A$4:$A$10003,$T$15,日記帳!$B$4:$B$10003,">=11:00:00",日記帳!$B$4:$B$10003,"<=11:59:59")) -> 0 | X16: =IF($T16="","",SUMIFS(日記帳!$F$4:$F$10003,日記帳!$G$4:$G$10003,$T16,日記帳!$A$4:$A$10003,$T$15,日記帳!$B$4:$B$10003,">=12:00:00",日記帳!$B$4:$B$10003,"<=12:59:59")) -> 0 | Y16: =IF($T16="","",SUMIFS(日記帳!$F$4:$F$10003,日記帳!$G$4:$G$10003,$T16,日記帳!$A$4:$A$10003,$T$15,日記帳!$B$4:$B$10003,">=13:00:00",日記帳!$B$4:$B$10003,"<=13:59:59")) -> 0 | Z16: =IF($T16="","",SUMIFS(日記帳!$F$4:$F$10003,日記帳!$G$4:$G$10003,$T16,日記帳!$A$4:$A$10003,$T$15,日記帳!$B$4:$B$10003,">=14:00:00",日記帳!$B$4:$B$10003,"<=14:59:59")) -> 0 | AA16: =IF($T16="","",SUMIFS(日記帳!$F$4:$F$10003,日記帳!$G$4:$G$10003,$T16,日記帳!$A$4:$A$10003,$T$15,日記帳!$B$4:$B$10003,">=15:00:00",日記帳!$B$4:$B$10003,"<=15:59:59")) -> 0 | AB16: =IF($T16="","",SUMIFS(日記帳!$F$4:$F$10003,日記帳!$G$4:$G$10003,$T16,日記帳!$A$4:$A$10003,$T$15,日記帳!$B$4:$B$10003,">=16:00:00",日記帳!$B$4:$B$10003,"<=23:59:59")) -> 0 | AC16: =SUM(U16:AB16) -> 0
A17: =IF(日記帳!$K5="","",日記帳!K5) -> 高校生 | B17: =IF($A17="","",SUMIFS(日記帳!$F$4:$F$10003,日記帳!$G$4:$G$10003,$A17,日記帳!$A$4:$A$10003,B$15)) -> 0 | C17: =IF($A17="","",SUMIFS(日記帳!$F$4:$F$10003,日記帳!$G$4:$G$10003,$A17,日記帳!$A$4:$A$10003,C$15)) -> 0 | I17: =IF(日記帳!J5="","",日記帳!J5) -> ねぎ醤油ラーメン | J17: =IF($I17="","",SUMIFS(日記帳!$F$4:$F$10003,日記帳!$C$4:$C$10003,$I17,日記帳!$A$4:$A$10003,$I$15,日記帳!$B$4:$B$10003,"<=9:59:59" )) -> 0 | K17: =IF($I17="","",SUMIFS(日記帳!$F$4:$F$10003,日記帳!$C$4:$C$10003,$I17,日記帳!$A$4:$A$10003,$I$15,日記帳!$B$4:$B$10003,">=10:00:00",日記帳!$B$4:$B$10003,"<=10:59:59")) -> 0 | L17: =IF($I17="","",SUMIFS(日記帳!$F$4:$F$10003,日記帳!$C$4:$C$10003,$I17,日記帳!$A$4:$A$10003,$I$15,日記帳!$B$4:$B$10003,">=11:00:00",日記帳!$B$4:$B$10003,"<=11:59:59")) -> 0 | M17: =IF($I17="","",SUMIFS(日記帳!$F$4:$F$10003,日記帳!$C$4:$C$10003,$I17,日記帳!$A$4:$A$10003,$I$15,日記帳!$B$4:$B$10003,">=12:00:00",日記帳!$B$4:$B$10003,"<=12:59:59")) -> 0 | N17: =IF($I17="","",SUMIFS(日記帳!$F$4:$F$10003,日記帳!$C$4:$C$10003,$I17,日記帳!$A$4:$A$10003,$I$15,日記帳!$B$4:$B$10003,">=13:00:00",日記帳!$B$4:$B$10003,"<=13:59:59")) -> 0 | O17: =IF($I17="","",SUMIFS(日記帳!$F$4:$F$10003,日記帳!$C$4:$C$10003,$I17,日記帳!$A$4:$A$10003,$I$15,日記帳!$B$4:$B$10003,">=14:00:00",日記帳!$B$4:$B$10003,"<=14:59:59")) -> 0 | P17: =IF($I17="","",SUMIFS(日記帳!$F$4:$F$10003,日記帳!$C$4:$C$10003,$I17,日記帳!$A$4:$A$10003,$I$15,日記帳!$B$4:$B$10003,">=15:00:00",日記帳!$B$4:$B$10003,"<=15:59:59")) -> 0 | Q17: =IF($I17="","",SUMIFS(日記帳!$F$4:$F$10003,日記帳!$C$4:$C$10003,$I17,日記帳!$A$4:$A$10003,$I$15,日記帳!$B$4:$B$10003,">=16:00:00",日記帳!$B$4:$B$10003,"<=23:59:59")) -> 0 | R17: =SUM(J17:Q17) -> 0 | T17: =IF(日記帳!K5="","",日記帳!K5) -> 高校生 | U17: =IF($T17="","",SUMIFS(日記帳!$F$4:$F$10003,日記帳!$G$4:$G$10003,$T17,日記帳!$A$4:$A$10003,$T$15,日記帳!$B$4:$B$10003,"<=9:59:59" )) -> 0 | V17: =IF($T17="","",SUMIFS(日記帳!$F$4:$F$10003,日記帳!$G$4:$G$10003,$T17,日記帳!$A$4:$A$10003,$T$15,日記帳!$B$4:$B$10003,">=10:00:00",日記帳!$B$4:$B$10003,"<=10:59:59")) -> 0 | W17: =IF($T17="","",SUMIFS(日記帳!$F$4:$F$10003,日記帳!$G$4:$G$10003,$T17,日記帳!$A$4:$A$10003,$T$15,日記帳!$B$4:$B$10003,">=11:00:00",日記帳!$B$4:$B$10003,"<=11:59:59")) -> 0 | X17: =IF($T17="","",SUMIFS(日記帳!$F$4:$F$10003,日記帳!$G$4:$G$10003,$T17,日記帳!$A$4:$A$10003,$T$15,日記帳!$B$4:$B$10003,">=12:00:00",日記帳!$B$4:$B$10003,"<=12:59:59")) -> 0 | Y17: =IF($T17="","",SUMIFS(日記帳!$F$4:$F$10003,日記帳!$G$4:$G$10003,$T17,日記帳!$A$4:$A$10003,$T$15,日記帳!$B$4:$B$10003,">=13:00:00",日記帳!$B$4:$B$10003,"<=13:59:59")) -> 0 | Z17: =IF($T17="","",SUMIFS(日記帳!$F$4:$F$10003,日記帳!$G$4:$G$10003,$T17,日記帳!$A$4:$A$10003,$T$15,日記帳!$B$4:$B$10003,">=14:00:00",日記帳!$B$4:$B$10003,"<=14:59:59")) -> 0 | AA17: =IF($T17="","",SUMIFS(日記帳!$F$4:$F$10003,日記帳!$G$4:$G$10003,$T17,日記帳!$A$4:$A$10003,$T$15,日記帳!$B$4:$B$10003,">=15:00:00",日記帳!$B$4:$B$10003,"<=15:59:59")) -> 0 | AB17: =IF($T17="","",SUMIFS(日記帳!$F$4:$F$10003,日記帳!$G$4:$G$10003,$T17,日記帳!$A$4:$A$10003,$T$15,日記帳!$B$4:$B$10003,">=16:00:00",日記帳!$B$4:$B$10003,"<=23:59:59")) -> 0 | AC17: =SUM(U17:AB17) -> 0
A18: =IF(日記帳!$K6="","",日記帳!K6) -> 大学生 | B18: =IF($A18="","",SUMIFS(日記帳!$F$4:$F$10003,日記帳!$G$4:$G$10003,$A18,日記帳!$A$4:$A$10003,B$15)) -> 0 | C18: =IF($A18="","",SUMIFS(日記帳!$F$4:$F$10003,日記帳!$G$4:$G$10003,$A18,日記帳!$A$4:$A$10003,C$15)) -> 0 | I18: =IF(日記帳!J6="","",日記帳!J6) ->  | K18: =IF($I18="","",SUMIFS(日記帳!$F$4:$F$10003,日記帳!$C$4:$C$10003,$I18,日記帳!$A$4:$A$10003,$I$15,日記帳!#REF!,K$15 )) ->  | L18: =IF($I18="","",SUMIFS(日記帳!$F$4:$F$10003,日記帳!$C$4:$C$10003,$I18,日記帳!$A$4:$A$10003,$I$15,日記帳!#REF!,L$15 )) ->  | M18: =IF($I18="","",SUMIFS(日記帳!$F$4:$F$10003,日記帳!$C$4:$C$10003,$I18,日記帳!$A$4:$A$10003,$I$15,日記帳!#REF!,M$15 )) ->  | N18: =IF($I18="","",SUMIFS(日記帳!$F$4:$F$10003,日記帳!$C$4:$C$10003,$I18,日記帳!$A$4:$A$10003,$I$15,日記帳!#REF!,N$15 )) ->  | O18: =IF($I18="","",SUMIFS(日記帳!$F$4:$F$10003,日記帳!$C$4:$C$10003,$I18,日記帳!$A$4:$A$10003,$I$15,日記帳!#REF!,O$15 )) ->  | P18: =IF($I18="","",SUMIFS(日記帳!$F$4:$F$10003,日記帳!$C$4:$C$10003,$I18,日記帳!$A$4:$A$10003,$I$15,日記帳!#REF!,P$15 )) ->  | Q18: =IF($I18="","",SUMIFS(日記帳!$F$4:$F$10003,日記帳!$C$4:$C$10003,$I18,日記帳!$A$4:$A$10003,$I$15,日記帳!#REF!,Q$15 )) ->  | R18: 0 | T18: =IF(日記帳!K6="","",日記帳!K6) -> 大学生 | U18: =IF($T18="","",SUMIFS(日記帳!$F$4:$F$10003,日記帳!$G$4:$G$10003,$T18,日記帳!$A$4:$A$10003,$T$15,日記帳!$B$4:$B$10003,"<=9:59:59" )) -> 0 | V18: =IF($T18="","",SUMIFS(日記帳!$F$4:$F$10003,日記帳!$G$4:$G$10003,$T18,日記帳!$A$4:$A$10003,$T$15,日記帳!$B$4:$B$10003,">=10:00:00",日記帳!$B$4:$B$10003,"<=10:59:59")) -> 0 | W18: =IF($T18="","",SUMIFS(日記帳!$F$4:$F$10003,日記帳!$G$4:$G$10003,$T18,日記帳!$A$4:$A$10003,$T$15,日記帳!$B$4:$B$10003,">=11:00:00",日記帳!$B$4:$B$10003,"<=11:59:59")) -> 0 | X18: =IF($T18="","",SUMIFS(日記帳!$F$4:$F$10003,日記帳!$G$4:$G$10003,$T18,日記帳!$A$4:$A$10003,$T$15,日記帳!$B$4:$B$10003,">=12:00:00",日記帳!$B$4:$B$10003,"<=12:59:59")) -> 0 | Y18: =IF($T18="","",SUMIFS(日記帳!$F$4:$F$10003,日記帳!$G$4:$G$10003,$T18,日記帳!$A$4:$A$10003,$T$15,日記帳!$B$4:$B$10003,">=13:00:00",日記帳!$B$4:$B$10003,"<=13:59:59")) -> 0 | Z18: =IF($T18="","",SUMIFS(日記帳!$F$4:$F$10003,日記帳!$G$4:$G$10003,$T18,日記帳!$A$4:$A$10003,$T$15,日記帳!$B$4:$B$10003,">=14:00:00",日記帳!$B$4:$B$10003,"<=14:59:59")) -> 0 | AA18: =IF($T18="","",SUMIFS(日記帳!$F$4:$F$10003,日記帳!$G$4:$G$10003,$T18,日記帳!$A$4:$A$10003,$T$15,日記帳!$B$4:$B$10003,">=15:00:00",日記帳!$B$4:$B$10003,"<=15:59:59")) -> 0 | AB18: =IF($T18="","",SUMIFS(日記帳!$F$4:$F$10003,日記帳!$G$4:$G$10003,$T18,日記帳!$A$4:$A$10003,$T$15,日記帳!$B$4:$B$10003,">=16:00:00",日記帳!$B$4:$B$10003,"<=23:59:59")) -> 0 | AC18: 0
A19: =IF(日記帳!$K7="","",日記帳!K7) -> 地域の方 | B19: =IF($A19="","",SUMIFS(日記帳!$F$4:$F$10003,日記帳!$G$4:$G$10003,$A19,日記帳!$A$4:$A$10003,B$15)) -> 0 | C19: =IF($A19="","",SUMIFS(日記帳!$F$4:$F$10003,日記帳!$G$4:$G$10003,$A19,日記帳!$A$4:$A$10003,C$15)) -> 0 | I19: =IF(日記帳!J7="","",日記帳!J7) ->  | K19: =IF($I19="","",SUMIFS(日記帳!$F$4:$F$10003,日記帳!$C$4:$C$10003,$I19,日記帳!$A$4:$A$10003,$I$15,日記帳!#REF!,K$15 )) ->  | L19: =IF($I19="","",SUMIFS(日記帳!$F$4:$F$10003,日記帳!$C$4:$C$10003,$I19,日記帳!$A$4:$A$10003,$I$15,日記帳!#REF!,L$15 )) ->  | M19: =IF($I19="","",SUMIFS(日記帳!$F$4:$F$10003,日記帳!$C$4:$C$10003,$I19,日記帳!$A$4:$A$10003,$I$15,日記帳!#REF!,M$15 )) ->  | N19: =IF($I19="","",SUMIFS(日記帳!$F$4:$F$10003,日記帳!$C$4:$C$10003,$I19,日記帳!$A$4:$A$10003,$I$15,日記帳!#REF!,N$15 )) ->  | O19: =IF($I19="","",SUMIFS(日記帳!$F$4:$F$10003,日記帳!$C$4:$C$10003,$I19,日記帳!$A$4:$A$10003,$I$15,日記帳!#REF!,O$15 )) ->  | P19: =IF($I19="","",SUMIFS(日記帳!$F$4:$F$10003,日記帳!$C$4:$C$10003,$I19,日記帳!$A$4:$A$10003,$I$15,日記帳!#REF!,P$15 )) ->  | Q19: =IF($I19="","",SUMIFS(日記帳!$F$4:$F$10003,日記帳!$C$4:$C$10003,$I19,日記帳!$A$4:$A$10003,$I$15,日記帳!#REF!,Q$15 )) ->  | R19: 0 | T19: =IF(日記帳!K7="","",日記帳!K7) -> 地域の方 | U19: =IF($T19="","",SUMIFS(日記帳!$F$4:$F$10003,日記帳!$G$4:$G$10003,$T19,日記帳!$A$4:$A$10003,$T$15,日記帳!$B$4:$B$10003,"<=9:59:59" )) -> 0 | V19: =IF($T19="","",SUMIFS(日記帳!$F$4:$F$10003,日記帳!$G$4:$G$10003,$T19,日記帳!$A$4:$A$10003,$T$15,日記帳!$B$4:$B$10003,">=10:00:00",日記帳!$B$4:$B$10003,"<=10:59:59")) -> 0 | W19: =IF($T19="","",SUMIFS(日記帳!$F$4:$F$10003,日記帳!$G$4:$G$10003,$T19,日記帳!$A$4:$A$10003,$T$15,日記帳!$B$4:$B$10003,">=11:00:00",日記帳!$B$4:$B$10003,"<=11:59:59")) -> 0 | X19: =IF($T19="","",SUMIFS(日記帳!$F$4:$F$10003,日記帳!$G$4:$G$10003,$T19,日記帳!$A$4:$A$10003,$T$15,日記帳!$B$4:$B$10003,">=12:00:00",日記帳!$B$4:$B$10003,"<=12:59:59")) -> 0 | Y19: =IF($T19="","",SUMIFS(日記帳!$F$4:$F$10003,日記帳!$G$4:$G$10003,$T19,日記帳!$A$4:$A$10003,$T$15,日記帳!$B$4:$B$10003,">=13:00:00",日記帳!$B$4:$B$10003,"<=13:59:59")) -> 0 | Z19: =IF($T19="","",SUMIFS(日記帳!$F$4:$F$10003,日記帳!$G$4:$G$10003,$T19,日記帳!$A$4:$A$10003,$T$15,日記帳!$B$4:$B$10003,">=14:00:00",日記帳!$B$4:$B$10003,"<=14:59:59")) -> 0 | AA19: =IF($T19="","",SUMIFS(日記帳!$F$4:$F$10003,日記帳!$G$4:$G$10003,$T19,日記帳!$A$4:$A$10003,$T$15,日記帳!$B$4:$B$10003,">=15:00:00",日記帳!$B$4:$B$10003,"<=15:59:59")) -> 0 | AB19: =IF($T19="","",SUMIFS(日記帳!$F$4:$F$10003,日記帳!$G$4:$G$10003,$T19,日記帳!$A$4:$A$10003,$T$15,日記帳!$B$4:$B$10003,">=16:00:00",日記帳!$B$4:$B$10003,"<=23:59:59")) -> 0 | AC19: 0
A20: =IF(日記帳!$K8="","",日記帳!K8) ->  | B20: =IF($A20="","",SUMIFS(日記帳!$F$4:$F$10003,日記帳!$G$4:$G$10003,$A20,日記帳!$A$4:$A$10003,B$15)) ->  | C20: =IF($A20="","",SUMIFS(日記帳!$F$4:$F$10003,日記帳!$G$4:$G$10003,$A20,日記帳!$A$4:$A$10003,C$15)) ->  | I20: =IF(日記帳!J8="","",日記帳!J8) ->  | K20: =IF($I20="","",SUMIFS(日記帳!$F$4:$F$10003,日記帳!$C$4:$C$10003,$I20,日記帳!$A$4:$A$10003,$I$15,日記帳!#REF!,K$15 )) ->  | L20: =IF($I20="","",SUMIFS(日記帳!$F$4:$F$10003,日記帳!$C$4:$C$10003,$I20,日記帳!$A$4:$A$10003,$I$15,日記帳!#REF!,L$15 )) ->  | M20: =IF($I20="","",SUMIFS(日記帳!$F$4:$F$10003,日記帳!$C$4:$C$10003,$I20,日記帳!$A$4:$A$10003,$I$15,日記帳!#REF!,M$15 )) ->  | N20: =IF($I20="","",SUMIFS(日記帳!$F$4:$F$10003,日記帳!$C$4:$C$10003,$I20,日記帳!$A$4:$A$10003,$I$15,日記帳!#REF!,N$15 )) ->  | O20: =IF($I20="","",SUMIFS(日記帳!$F$4:$F$10003,日記帳!$C$4:$C$10003,$I20,日記帳!$A$4:$A$10003,$I$15,日記帳!#REF!,O$15 )) ->  | P20: =IF($I20="","",SUMIFS(日記帳!$F$4:$F$10003,日記帳!$C$4:$C$10003,$I20,日記帳!$A$4:$A$10003,$I$15,日記帳!#REF!,P$15 )) ->  | Q20: =IF($I20="","",SUMIFS(日記帳!$F$4:$F$10003,日記帳!$C$4:$C$10003,$I20,日記帳!$A$4:$A$10003,$I$15,日記帳!#REF!,Q$15 )) ->  | R20: 0 | T20: =IF(日記帳!U8="","",日記帳!U8) ->  | U20: =IF($T20="","",SUMIFS(日記帳!$F$4:$F$10003,日記帳!$G$4:$G$10003,$T20,日記帳!$A$4:$A$10003,$T$15,日記帳!$B$4:$B$10003,"<=9:59:59" )) ->  | V20: =IF($T20="","",SUMIFS(日記帳!$F$4:$F$10003,日記帳!$G$4:$G$10003,$T20,日記帳!$A$4:$A$10003,$T$15,日記帳!$B$4:$B$10003,">=10:00:00",日記帳!$B$4:$B$10003,"<=10:59:59")) ->  | W20: =IF($T20="","",SUMIFS(日記帳!$F$4:$F$10003,日記帳!$G$4:$G$10003,$T20,日記帳!$A$4:$A$10003,$T$15,日記帳!$B$4:$B$10003,">=11:00:00",日記帳!$B$4:$B$10003,"<=11:59:59")) ->  | X20: =IF($T20="","",SUMIFS(日記帳!$F$4:$F$10003,日記帳!$G$4:$G$10003,$T20,日記帳!$A$4:$A$10003,$T$15,日記帳!$B$4:$B$10003,">=12:00:00",日記帳!$B$4:$B$10003,"<=12:59:59")) ->  | Y20: =IF($T20="","",SUMIFS(日記帳!$F$4:$F$10003,日記帳!$G$4:$G$10003,$T20,日記帳!$A$4:$A$10003,$T$15,日記帳!$B$4:$B$10003,">=13:00:00",日記帳!$B$4:$B$10003,"<=13:59:59")) ->  | Z20: =IF($T20="","",SUMIFS(日記帳!$F$4:$F$10003,日記帳!$G$4:$G$10003,$T20,日記帳!$A$4:$A$10003,$T$15,日記帳!$B$4:$B$10003,">=14:00:00",日記帳!$B$4:$B$10003,"<=14:59:59")) ->  | AA20: =IF($T20="","",SUMIFS(日記帳!$F$4:$F$10003,日記帳!$G$4:$G$10003,$T20,日記帳!$A$4:$A$10003,$T$15,日記帳!$B$4:$B$10003,">=15:00:00",日記帳!$B$4:$B$10003,"<=15:59:59")) ->  | AB20: =IF($T20="","",SUMIFS(日記帳!$F$4:$F$10003,日記帳!$G$4:$G$10003,$T20,日記帳!$A$4:$A$10003,$T$15,日記帳!$B$4:$B$10003,">=16:00:00",日記帳!$B$4:$B$10003,"<=23:59:59")) ->  | AC20: 0
A21: =IF(日記帳!$K9="","",日記帳!K9) ->  | B21: =IF($A21="","",SUMIFS(日記帳!$F$4:$F$10003,日記帳!$G$4:$G$10003,$A21,日記帳!$A$4:$A$10003,B$15)) ->  | C21: =IF($A21="","",SUMIFS(日記帳!$F$4:$F$10003,日記帳!$G$4:$G$10003,$A21,日記帳!$A$4:$A$10003,C$15)) ->  | I21: =IF(日記帳!J9="","",日記帳!J9) ->  | K21: =IF($I21="","",SUMIFS(日記帳!$F$4:$F$10003,日記帳!$C$4:$C$10003,$I21,日記帳!$A$4:$A$10003,$I$15,日記帳!#REF!,K$15 )) ->  | L21: =IF($I21="","",SUMIFS(日記帳!$F$4:$F$10003,日記帳!$C$4:$C$10003,$I21,日記帳!$A$4:$A$10003,$I$15,日記帳!#REF!,L$15 )) ->  | M21: =IF($I21="","",SUMIFS(日記帳!$F$4:$F$10003,日記帳!$C$4:$C$10003,$I21,日記帳!$A$4:$A$10003,$I$15,日記帳!#REF!,M$15 )) ->  | N21: =IF($I21="","",SUMIFS(日記帳!$F$4:$F$10003,日記帳!$C$4:$C$10003,$I21,日記帳!$A$4:$A$10003,$I$15,日記帳!#REF!,N$15 )) ->  | O21: =IF($I21="","",SUMIFS(日記帳!$F$4:$F$10003,日記帳!$C$4:$C$10003,$I21,日記帳!$A$4:$A$10003,$I$15,日記帳!#REF!,O$15 )) ->  | P21: =IF($I21="","",SUMIFS(日記帳!$F$4:$F$10003,日記帳!$C$4:$C$10003,$I21,日記帳!$A$4:$A$10003,$I$15,日記帳!#REF!,P$15 )) ->  | Q21: =IF($I21="","",SUMIFS(日記帳!$F$4:$F$10003,日記帳!$C$4:$C$10003,$I21,日記帳!$A$4:$A$10003,$I$15,日記帳!#REF!,Q$15 )) ->  | R21: 0 | T21: =IF(日記帳!U9="","",日記帳!U9) ->  | U21: =IF($T21="","",SUMIFS(日記帳!$F$4:$F$10003,日記帳!$G$4:$G$10003,$T21,日記帳!$A$4:$A$10003,$T$15,日記帳!$B$4:$B$10003,"<=9:59:59" )) ->  | V21: =IF($T21="","",SUMIFS(日記帳!$F$4:$F$10003,日記帳!$G$4:$G$10003,$T21,日記帳!$A$4:$A$10003,$T$15,日記帳!$B$4:$B$10003,">=10:00:00",日記帳!$B$4:$B$10003,"<=10:59:59")) ->  | W21: =IF($T21="","",SUMIFS(日記帳!$F$4:$F$10003,日記帳!$G$4:$G$10003,$T21,日記帳!$A$4:$A$10003,$T$15,日記帳!$B$4:$B$10003,">=11:00:00",日記帳!$B$4:$B$10003,"<=11:59:59")) ->  | X21: =IF($T21="","",SUMIFS(日記帳!$F$4:$F$10003,日記帳!$G$4:$G$10003,$T21,日記帳!$A$4:$A$10003,$T$15,日記帳!$B$4:$B$10003,">=12:00:00",日記帳!$B$4:$B$10003,"<=12:59:59")) ->  | Y21: =IF($T21="","",SUMIFS(日記帳!$F$4:$F$10003,日記帳!$G$4:$G$10003,$T21,日記帳!$A$4:$A$10003,$T$15,日記帳!$B$4:$B$10003,">=13:00:00",日記帳!$B$4:$B$10003,"<=13:59:59")) ->  | Z21: =IF($T21="","",SUMIFS(日記帳!$F$4:$F$10003,日記帳!$G$4:$G$10003,$T21,日記帳!$A$4:$A$10003,$T$15,日記帳!$B$4:$B$10003,">=14:00:00",日記帳!$B$4:$B$10003,"<=14:59:59")) ->  | AA21: =IF($T21="","",SUMIFS(日記帳!$F$4:$F$10003,日記帳!$G$4:$G$10003,$T21,日記帳!$A$4:$A$10003,$T$15,日記帳!$B$4:$B$10003,">=15:00:00",日記帳!$B$4:$B$10003,"<=15:59:59")) ->  | AB21: =IF($T21="","",SUMIFS(日記帳!$F$4:$F$10003,日記帳!$G$4:$G$10003,$T21,日記帳!$A$4:$A$10003,$T$15,日記帳!$B$4:$B$10003,">=16:00:00",日記帳!$B$4:$B$10003,"<=23:59:59")) ->  | AC21: 0
A22: =IF(日記帳!$K10="","",日記帳!K10) ->  | B22: =IF($A22="","",SUMIFS(日記帳!$F$4:$F$10003,日記帳!$G$4:$G$10003,$A22,日記帳!$A$4:$A$10003,B$15)) ->  | C22: =IF($A22="","",SUMIFS(日記帳!$F$4:$F$10003,日記帳!$G$4:$G$10003,$A22,日記帳!$A$4:$A$10003,C$15)) ->  | I22: =IF(日記帳!J10="","",日記帳!J10) ->  | K22: =IF($I22="","",SUMIFS(日記帳!$F$4:$F$10003,日記帳!$C$4:$C$10003,$I22,日記帳!$A$4:$A$10003,$I$15,日記帳!#REF!,K$15 )) ->  | L22: =IF($I22="","",SUMIFS(日記帳!$F$4:$F$10003,日記帳!$C$4:$C$10003,$I22,日記帳!$A$4:$A$10003,$I$15,日記帳!#REF!,L$15 )) ->  | M22: =IF($I22="","",SUMIFS(日記帳!$F$4:$F$10003,日記帳!$C$4:$C$10003,$I22,日記帳!$A$4:$A$10003,$I$15,日記帳!#REF!,M$15 )) ->  | N22: =IF($I22="","",SUMIFS(日記帳!$F$4:$F$10003,日記帳!$C$4:$C$10003,$I22,日記帳!$A$4:$A$10003,$I$15,日記帳!#REF!,N$15 )) ->  | O22: =IF($I22="","",SUMIFS(日記帳!$F$4:$F$10003,日記帳!$C$4:$C$10003,$I22,日記帳!$A$4:$A$10003,$I$15,日記帳!#REF!,O$15 )) ->  | P22: =IF($I22="","",SUMIFS(日記帳!$F$4:$F$10003,日記帳!$C$4:$C$10003,$I22,日記帳!$A$4:$A$10003,$I$15,日記帳!#REF!,P$15 )) ->  | Q22: =IF($I22="","",SUMIFS(日記帳!$F$4:$F$10003,日記帳!$C$4:$C$10003,$I22,日記帳!$A$4:$A$10003,$I$15,日記帳!#REF!,Q$15 )) ->  | R22: 0 | T22: =IF(日記帳!U10="","",日記帳!U10) ->  | U22: =IF($T22="","",SUMIFS(日記帳!$F$4:$F$10003,日記帳!$G$4:$G$10003,$T22,日記帳!$A$4:$A$10003,$T$15,日記帳!$B$4:$B$10003,"<=9:59:59" )) ->  | V22: =IF($T22="","",SUMIFS(日記帳!$F$4:$F$10003,日記帳!$G$4:$G$10003,$T22,日記帳!$A$4:$A$10003,$T$15,日記帳!$B$4:$B$10003,">=10:00:00",日記帳!$B$4:$B$10003,"<=10:59:59")) ->  | W22: =IF($T22="","",SUMIFS(日記帳!$F$4:$F$10003,日記帳!$G$4:$G$10003,$T22,日記帳!$A$4:$A$10003,$T$15,日記帳!$B$4:$B$10003,">=11:00:00",日記帳!$B$4:$B$10003,"<=11:59:59")) ->  | X22: =IF($T22="","",SUMIFS(日記帳!$F$4:$F$10003,日記帳!$G$4:$G$10003,$T22,日記帳!$A$4:$A$10003,$T$15,日記帳!$B$4:$B$10003,">=12:00:00",日記帳!$B$4:$B$10003,"<=12:59:59")) ->  | Y22: =IF($T22="","",SUMIFS(日記帳!$F$4:$F$10003,日記帳!$G$4:$G$10003,$T22,日記帳!$A$4:$A$10003,$T$15,日記帳!$B$4:$B$10003,">=13:00:00",日記帳!$B$4:$B$10003,"<=13:59:59")) ->  | Z22: =IF($T22="","",SUMIFS(日記帳!$F$4:$F$10003,日記帳!$G$4:$G$10003,$T22,日記帳!$A$4:$A$10003,$T$15,日記帳!$B$4:$B$10003,">=14:00:00",日記帳!$B$4:$B$10003,"<=14:59:59")) ->  | AA22: =IF($T22="","",SUMIFS(日記帳!$F$4:$F$10003,日記帳!$G$4:$G$10003,$T22,日記帳!$A$4:$A$10003,$T$15,日記帳!$B$4:$B$10003,">=15:00:00",日記帳!$B$4:$B$10003,"<=15:59:59")) ->  | AB22: =IF($T22="","",SUMIFS(日記帳!$F$4:$F$10003,日記帳!$G$4:$G$10003,$T22,日記帳!$A$4:$A$10003,$T$15,日記帳!$B$4:$B$10003,">=16:00:00",日記帳!$B$4:$B$10003,"<=23:59:59")) ->  | AC22: 0
A23: 合計 | B23: =IF(B$15="","",SUM(B16:B22)) -> 0 | C23: =IF(C$15="","",SUM(C16:C22)) -> 0 | I23: 合計 | J23: =SUM(J15:J22) -> 0 | K23: =SUM(K16:K22) -> 0 | L23: 0 | M23: 0 | N23: 0 | O23: 0 | P23: 0 | Q23: =SUM(Q16:Q22) -> 0 | R23: 0 | T23: 合計 | U23: =SUM(U16:U22) -> 0 | V23: =SUM(V16:V22) -> 0 | W23: 0 | X23: 0 | Y23: 0 | Z23: 0 | AA23: 0 | AB23: 0 | AC23: =SUM(AC16:AC22) -> 0
T26: 客層別商品別売上高 1日目
T27: =IF(損益分岐点売上高・投資!B10="","",損益分岐点売上高・投資!B10) -> 2023-11-03 | U27: =IF(パネル!Q17="","",パネル!Q17) -> 醤油ラーメン | V27: =IF(パネル!Q18="","",パネル!Q18) -> ねぎ醤油ラーメン | W27: 計
T28: =IF(日記帳!$K4="","",日記帳!K4) -> 中学生以下 | U28: =IF($T28="","",SUMIFS(日記帳!$F$4:$F$10003,日記帳!$G$4:$G$10003,$T28,日記帳!$C$4:$C$10003,U$27,日記帳!$A$4:$A$10003,$T$27)) -> 0 | V28: =IF($T28="","",SUMIFS(日記帳!$F$4:$F$10003,日記帳!$G$4:$G$10003,$T28,日記帳!$C$4:$C$10003,V$27,日記帳!$A$4:$A$10003,$T$27)) -> 0 | W28: =IF(T28="","",U28+V28) -> 0
T29: =IF(日記帳!$K5="","",日記帳!K5) -> 高校生 | U29: =IF($T29="","",SUMIFS(日記帳!$F$4:$F$10003,日記帳!$G$4:$G$10003,$T29,日記帳!$C$4:$C$10003,U$27,日記帳!$A$4:$A$10003,$T$27)) -> 0 | V29: =IF($T29="","",SUMIFS(日記帳!$F$4:$F$10003,日記帳!$G$4:$G$10003,$T29,日記帳!$C$4:$C$10003,V$27,日記帳!$A$4:$A$10003,$T$27)) -> 0 | W29: =IF(T29="","",U29+V29) -> 0
T30: =IF(日記帳!$K6="","",日記帳!K6) -> 大学生 | U30: =IF($T30="","",SUMIFS(日記帳!$F$4:$F$10003,日記帳!$G$4:$G$10003,$T30,日記帳!$C$4:$C$10003,U$27,日記帳!$A$4:$A$10003,$T$27)) -> 0 | V30: =IF($T30="","",SUMIFS(日記帳!$F$4:$F$10003,日記帳!$G$4:$G$10003,$T30,日記帳!$C$4:$C$10003,V$27,日記帳!$A$4:$A$10003,$T$27)) -> 0 | W30: 0
T31: =IF(日記帳!$K7="","",日記帳!K7) -> 地域の方 | U31: =IF($T31="","",SUMIFS(日記帳!$F$4:$F$10003,日記帳!$G$4:$G$10003,$T31,日記帳!$C$4:$C$10003,U$27,日記帳!$A$4:$A$10003,$T$27)) -> 0 | V31: =IF($T31="","",SUMIFS(日記帳!$F$4:$F$10003,日記帳!$G$4:$G$10003,$T31,日記帳!$C$4:$C$10003,V$27,日記帳!$A$4:$A$10003,$T$27)) -> 0 | W31: 0
T32: =IF(日記帳!$K8="","",日記帳!K8) ->  | U32: =IF($T32="","",SUMIFS(日記帳!$F$4:$F$10003,日記帳!$G$4:$G$10003,$T32,日記帳!$C$4:$C$10003,U$27,日記帳!$A$4:$A$10003,$T$27)) ->  | V32: =IF($T32="","",SUMIFS(日記帳!$F$4:$F$10003,日記帳!$G$4:$G$10003,$T32,日記帳!$C$4:$C$10003,V$27,日記帳!$A$4:$A$10003,$T$27)) -> 
T33: =IF(日記帳!$K9="","",日記帳!K9) ->  | U33: =IF($T33="","",SUMIFS(日記帳!$F$4:$F$10003,日記帳!$G$4:$G$10003,$T33,日記帳!$C$4:$C$10003,U$27,日記帳!$A$4:$A$10003,$T$27)) ->  | V33: =IF($T33="","",SUMIFS(日記帳!$F$4:$F$10003,日記帳!$G$4:$G$10003,$T33,日記帳!$C$4:$C$10003,V$27,日記帳!$A$4:$A$10003,$T$27)) -> 
T34: =IF(日記帳!$K10="","",日記帳!K10) ->  | U34: =IF($T34="","",SUMIFS(日記帳!$F$4:$F$10003,日記帳!$G$4:$G$10003,$T34,日記帳!$C$4:$C$10003,U$27,日記帳!$A$4:$A$10003,$T$27)) ->  | V34: =IF($T34="","",SUMIFS(日記帳!$F$4:$F$10003,日記帳!$G$4:$G$10003,$T34,日記帳!$C$4:$C$10003,V$27,日記帳!$A$4:$A$10003,$T$27)) -> 
T35: 合計 | U35: =IF(U$15="","",SUM(U28:U34)) -> 0 | V35: =IF(V$15="","",SUM(V28:V34)) -> 0 | W35: =SUM(W28:W34) -> 0
T37: 客層別商品別売上高 ２日目
T38: =IF(損益分岐点売上高・投資!B11="","",損益分岐点売上高・投資!B11) -> 2023-11-04 | U38: =IF(パネル!Q17="","",パネル!Q17) -> 醤油ラーメン | V38: =IF(パネル!Q18="","",パネル!Q18) -> ねぎ醤油ラーメン | W38: 計
T39: =IF(日記帳!$K4="","",日記帳!K4) -> 中学生以下 | U39: =IF($T39="","",SUMIFS(日記帳!$F$4:$F$10003,日記帳!$G$4:$G$10003,$T39,日記帳!$C$4:$C$10003,U$38,日記帳!$A$4:$A$10003,$T$38)) -> 0 | V39: =IF($T39="","",SUMIFS(日記帳!$F$4:$F$10003,日記帳!$G$4:$G$10003,$T39,日記帳!$C$4:$C$10003,V$38,日記帳!$A$4:$A$10003,$T$38)) -> 0 | W39: =IF(T39="","",U39+V39) -> 0
T40: =IF(日記帳!$K5="","",日記帳!K5) -> 高校生 | U40: =IF($T40="","",SUMIFS(日記帳!$F$4:$F$10003,日記帳!$G$4:$G$10003,$T40,日記帳!$C$4:$C$10003,U$38,日記帳!$A$4:$A$10003,$T$38)) -> 0 | V40: =IF($T40="","",SUMIFS(日記帳!$F$4:$F$10003,日記帳!$G$4:$G$10003,$T40,日記帳!$C$4:$C$10003,V$38,日記帳!$A$4:$A$10003,$T$38)) -> 0 | W40: =IF(T40="","",U40+V40) -> 0
T41: =IF(日記帳!$K6="","",日記帳!K6) -> 大学生 | U41: =IF($T41="","",SUMIFS(日記帳!$F$4:$F$10003,日記帳!$G$4:$G$10003,$T41,日記帳!$C$4:$C$10003,U$38,日記帳!$A$4:$A$10003,$T$38)) -> 0 | V41: =IF($T41="","",SUMIFS(日記帳!$F$4:$F$10003,日記帳!$G$4:$G$10003,$T41,日記帳!$C$4:$C$10003,V$38,日記帳!$A$4:$A$10003,$T$38)) -> 0 | W41: 0
T42: =IF(日記帳!$K7="","",日記帳!K7) -> 地域の方 | U42: =IF($T42="","",SUMIFS(日記帳!$F$4:$F$10003,日記帳!$G$4:$G$10003,$T42,日記帳!$C$4:$C$10003,U$38,日記帳!$A$4:$A$10003,$T$38)) -> 0 | V42: =IF($T42="","",SUMIFS(日記帳!$F$4:$F$10003,日記帳!$G$4:$G$10003,$T42,日記帳!$C$4:$C$10003,V$38,日記帳!$A$4:$A$10003,$T$38)) -> 0 | W42: 0
T43: =IF(日記帳!$K8="","",日記帳!K8) ->  | U43: =IF($T43="","",SUMIFS(日記帳!$F$4:$F$10003,日記帳!$G$4:$G$10003,$T43,日記帳!$C$4:$C$10003,U$38,日記帳!$A$4:$A$10003,$T$38)) ->  | V43: =IF($T43="","",SUMIFS(日記帳!$F$4:$F$10003,日記帳!$G$4:$G$10003,$T43,日記帳!$C$4:$C$10003,V$38,日記帳!$A$4:$A$10003,$T$38)) -> 
T44: =IF(日記帳!$K9="","",日記帳!K9) ->  | U44: =IF($T44="","",SUMIFS(日記帳!$F$4:$F$10003,日記帳!$G$4:$G$10003,$T44,日記帳!$C$4:$C$10003,U$38,日記帳!$A$4:$A$10003,$T$38)) ->  | V44: =IF($T44="","",SUMIFS(日記帳!$F$4:$F$10003,日記帳!$G$4:$G$10003,$T44,日記帳!$C$4:$C$10003,V$38,日記帳!$A$4:$A$10003,$T$38)) -> 
T45: =IF(日記帳!$K10="","",日記帳!K10) ->  | U45: =IF($T45="","",SUMIFS(日記帳!$F$4:$F$10003,日記帳!$G$4:$G$10003,$T45,日記帳!$C$4:$C$10003,U$38,日記帳!$A$4:$A$10003,$T$38)) ->  | V45: =IF($T45="","",SUMIFS(日記帳!$F$4:$F$10003,日記帳!$G$4:$G$10003,$T45,日記帳!$C$4:$C$10003,V$38,日記帳!$A$4:$A$10003,$T$38)) -> 
T46: 合計 | U46: =IF(U$15="","",SUM(U39:U45)) -> 0 | V46: =IF(V$15="","",SUM(V39:V45)) -> 0 | W46: =SUM(W39:W45) -> 0

Sheet 現金出納帳
A2: 現 金 出 納 帳 | H2: 残高照会（実際額） | T2: 現金出納帳 | U2: 現金過不足
A3: 月 | B3: 日 | C3: 摘 要 | D3: 収 入 | E3: 支 出 | F3: 残 高 | H3: 円 | I3: 1 | J3: 5 | K3: 10 | L3: 50 | M3: 100 | N3: 500 | O3: 1000 | P3: 2000 | Q3: 5000 | R3: 10000 | S3: 合 計 | T3: 帳簿残高 | U3: 過不足
A4: 11 | B4: 2 | C4: 出資金 | D4: =IF(損益分岐点売上高・投資!Y2="","",損益分岐点売上高・投資!Y3) -> 183000 | F4: =IF(D4="","",D4-E4) -> 183000 | H4: =IF(損益分岐点売上高・投資!B10="","",損益分岐点売上高・投資!B10) -> 2023-11-03 | S4: =$I$3*I4+$J$3*J4+$K$3*K4+$L$3*L4+$M$3*M4+$N$3*N4+$O$3*O4+$P$3*P4+$Q$3*Q4+$R$3*R4 -> 0 | T4: =F10 -> 114360 | U4: =S4-T4 -> -114360
B5: 〃 | C5: 追加出資 | D5: =IF(損益分岐点売上高・投資!Y4="","",損益分岐点売上高・投資!Y4) -> 0 | F5: =IF(F4="","",F4+D5-E5) -> 183000 | H5: =IF(損益分岐点売上高・投資!B11="","",損益分岐点売上高・投資!B11) -> 2023-11-04 | S5: =$I$3*I5+$J$3*J5+$K$3*K5+$L$3*L5+$M$3*M5+$N$3*N5+$O$3*O5+$P$3*P5+$Q$3*Q5+$R$3*R5 -> 0 | T5: =F14 -> 114360 | U5: =S5-T5 -> -114360
B6: 〃 | C6: 諸経費等支出 | E6: =IF(D4="","",支出項目!C53) -> 68640 | F6: =IF(F5="","",F5+D6-E6) -> 114360 | H6: ⇒文化祭の終わりに毎日つり銭のコインとお札の枚数を上の表に入力して、現金出納帳の残高金額を合わせてください。
A7: 11 | B7: 3 | C7: 売上収入 | D7: =売上高分析!B12 -> 0 | F7: =IF(F6="","",F6+D7-E7) -> 114360 | H7: 過不足があれば原因を調査して金額をゼロにしてください。
B8: 〃 | C8: 追加出資 | D8: =損益分岐点売上高・投資!Y5 -> 0 | F8: 114360 | H8: 現金出納帳に日付を入力してください。
B9: 〃 | C9: 諸経費等支出 | E9: =支出項目!D53 -> 0 | F9: 114360
B10: 〃 | C10: 過不足調整 | F10: =IF(F9="","",F9+D10-E10) -> 114360
B11: 4 | C11: 売上収入 | D11: =売上高分析!C12 -> 0 | F11: 114360
B12: 〃 | C12: 追加出資 | D12: =損益分岐点売上高・投資!Y6 -> 0 | F12: 114360
B13: 〃 | C13: 諸経費等支出 | E13: =支出項目!E53 -> 0 | F13: 114360
B14: 〃 | C14: 過不足調整 | F14: 114360
B15: 〃 | C15: 残 高 | E15: =IF(F14="","",F14) -> 114360
D16: =IF(D4="","",SUM(D4:D15)) -> 183000 | E16: =IF(E6="","",SUM(E4:E15)) -> 183000

Sheet 損益計算書
A1: 損益計算書 （単位：円）
A2: =IF(損益分岐点売上高・投資!E1="","",損益分岐点売上高・投資!E1) -> 自家製ラーメン | B2: =IF(損益分岐点売上高・投資!B2="","",損益分岐点売上高・投資!B2) -> 2024年11月３日～2024年11月４日 | D2: 利益処分（単位：円）
A3: 売 上 高 | B3: =SUM(売上高分析!B12:C12) -> 0 | D3: 営業利益 | E3: =B7 -> -68640 | F3: 円
A4: 変 動 費 | B4: =支出項目!F30 -> 0 | D4: =支出項目!A47 -> 払い戻し | E4: =支出項目!F47 -> 0 | F4: 円
A5: 貢献利益 | B5: =B3-B4 -> 0 | D5: =支出項目!A48 -> お花 | E5: =支出項目!F48 -> 0 | F5: 円
A6: 固 定 費 | B6: =支出項目!F44 -> 68640 | D6: =支出項目!A49 -> お菓子 | E6: =支出項目!F49 -> 0 | F6: 円
A7: 営業利益 | B7: =B5-B6 -> -68640 | D7: 処分後営業利益 | E7: =E3-E4-E5-E6 -> -68640 | F7: 円

Sheet 予算実績比較
B1: 実績 | J1: 予算実績比較損益計算書
K2: 予算 | L2: 実績 | M2: 差異 | N2: 実績＋協賛品原価
B3: 売上に関する項目：販売実績 | J3: 売上高 | K3: =予算!J3 -> 337500 | L3: =損益計算書!B3 -> 0 | M3: =L3-K3 -> -337500 | N3: =損益計算書!B3 -> 0
B4: 1日目売上高 | C4: =日記帳!K21 -> 0 | D4: 杯 | E4: =G4/C4 ->  | F4: 円／杯 | G4: =売上高分析!B12 -> 0 | H4: 円 | J4: 変動費 | K4: =予算!J4 -> 114703 | L4: =損益計算書!B4 -> 0 | M4: =K4-L4 -> 114703 | N4: =損益計算書!B4+予算!I29 -> 0
B5: ２日目売上高 | C5: =日記帳!L21 -> 0 | D5: 杯 | E5: =G5/C5 ->  | F5: 円／杯 | G5: =売上高分析!C12 -> 0 | H5: 円 | J5: 貢献利益 | K5: =予算!J5 -> 222797 | L5: =損益計算書!B5 -> 0 | M5: =L5-K5 -> -222797 | N5: =N3-N4 -> 0
B6: 合 計 | G6: =G4+G5 -> 0 | H6: 円 | J6: 固定費 | K6: =予算!J6 -> 68640 | L6: =損益計算書!B6 -> 68640 | M6: 0 | N6: =損益計算書!B6 -> 68640
B7: 材料費等に関する項目：原価実績（変動費） | J7: 営業利益 | K7: =予算!J7 -> 154157 | L7: =損益計算書!B7 -> -68640 | M7: =L7-K7 -> -222797 | N7: =N5-N6 -> -68640
A8: No. | B8: 費 目 | C8: 数 量 | D8: 協賛 | E8: 単 価 | G8: 金 額 | J8: 差異分析 | K8: 消費税は変動費の一部としています。
A9: 1 | B9: =IF(支出項目!A3="","",支出項目!A3) -> 生ラーメン細麺5人前 | D9: =IF(AND(予算!D8="〇",予算実績比較!G9=0),"〇","") ->  | E9: =IF(C9="","",G9/C9) ->  | F9: 円 | G9: =支出項目!F3 -> 0 | H9: 円 | J9: 項 目 | K9: 予算 | L9: 数量差異 | M9: 価格差異 | N9: 実績
A10: 2 | B10: =IF(支出項目!A4="","",支出項目!A4) -> ごく太メンマ | D10: =IF(AND(予算!D9="〇",予算実績比較!G10=0),"〇","") ->  | E10: =IF(C10="","",G10/C10) ->  | F10: 円 | G10: =支出項目!F4 -> 0 | H10: 円 | J10: =B4 -> 1日目売上高 | K10: =予算!F3 -> 175000 | L10: =IF(OR(J10="",K10=0),"",(予算実績比較!C4-予算!C3)*予算!E3) -> -175000 | M10: =IF(J10="","",N10-(K10+L10)) -> 0 | N10: =G4 -> 0
A11: 3 | B11: =IF(支出項目!A5="","",支出項目!A5) -> 冷凍ホウレンソウ | D11: =IF(AND(予算!D10="〇",予算実績比較!G11=0),"〇","") ->  | F11: 円 | G11: =支出項目!F5 -> 0 | H11: 円 | J11: =B5 -> ２日目売上高 | K11: =予算!F4 -> 162500 | L11: =IF(OR(J11="",K11=0),"",(予算実績比較!C5-予算!C4)*予算!E4) -> -162500 | M11: =IF(J11="","",N11-(K11+L11)) -> 0 | N11: =G5 -> 0
A12: 4 | B12: =IF(支出項目!A6="","",支出項目!A6) -> 上級本醸造しょうゆ1.8L | D12: =IF(AND(予算!D11="〇",予算実績比較!G12=0),"〇","") ->  | F12: 円 | G12: =支出項目!F6 -> 0 | H12: 円 | J12: =B9 -> 生ラーメン細麺5人前 | K12: =予算!F8 -> 27860 | L12: =IF(OR(C9="",J12="",K12=0),"",(予算!C8-予算実績比較!C9)*予算!E8) ->  | M12: =IF(OR(C9="",J12="",K12=0),"",(K12+L12)-N12) ->  | N12: =G9 -> 0
A13: 5 | B13: =IF(支出項目!A7="","",支出項目!A7) -> 日の出業務料理酒1.5L | D13: =IF(AND(予算!D12="〇",予算実績比較!G13=0),"〇","") ->  | F13: 円 | G13: =支出項目!F7 -> 0 | H13: 円 | J13: =B10 -> ごく太メンマ | K13: =予算!F9 -> 18468 | L13: =IF(OR(C10="",J13="",K13=0),"",(予算!C9-予算実績比較!C10)*予算!E9) ->  | M13: =IF(OR(C10="",J13="",K13=0),"",(K13+L13)-N13) ->  | N13: =G10 -> 0
A14: 6 | B14: =IF(支出項目!A8="","",支出項目!A8) -> 青ネギ冷凍 | D14: =IF(AND(予算!D13="〇",予算実績比較!G14=0),"〇","") ->  | F14: 円 | G14: =支出項目!F8 -> 0 | H14: 円 | J14: 冷凍ホウレンソウ | K14: =予算!F10 -> 4032 | L14: =IF(OR(C11="",J14="",K14=0),"",(予算!C10-予算実績比較!C11)*予算!E10) ->  | N14: 0
A15: 7 | B15: =IF(支出項目!A9="","",支出項目!A9) -> しょうが | D15: =IF(AND(予算!D14="〇",予算実績比較!G15=0),"〇","") ->  | F15: 円 | G15: =支出項目!F9 -> 0 | H15: 円 | J15: 上級本醸造しょうゆ1.8L | K15: =予算!F11 -> 2024 | L15: =IF(OR(C12="",J15="",K15=0),"",(予算!C11-予算実績比較!C12)*予算!E11) ->  | N15: 0
A16: 8 | B16: =IF(支出項目!A10="","",支出項目!A10) -> E-2Rどんぶり | D16: =IF(AND(予算!D15="〇",予算実績比較!G16=0),"〇","") ->  | F16: 円 | G16: =支出項目!F10 -> 0 | H16: 円 | J16: 日の出業務料理酒1.5L | K16: =予算!F12 -> 2380 | L16: =IF(OR(C13="",J16="",K16=0),"",(予算!C12-予算実績比較!C13)*予算!E12) ->  | N16: 0
A17: 9 | B17: =IF(支出項目!A11="","",支出項目!A11) -> アスペン元禄バシ５００膳 | D17: =IF(AND(予算!D16="〇",予算実績比較!G17=0),"〇","") ->  | F17: 円 | G17: =支出項目!F11 -> 0 | H17: 円 | J17: 青ネギ冷凍 | K17: =予算!F13 -> 3456 | L17: =IF(OR(C14="",J17="",K17=0),"",(予算!C13-予算実績比較!C14)*予算!E13) ->  | N17: 0
A18: 10 | B18: =IF(支出項目!A12="","",支出項目!A12) -> 豚肩ロース | D18: =IF(AND(予算!D17="〇",予算実績比較!G18=0),"〇","") ->  | F18: 円 | G18: =支出項目!F12 -> 0 | H18: 円 | J18: しょうが | K18: =予算!F14 -> 2000 | L18: =IF(OR(C15="",J18="",K18=0),"",(予算!C14-予算実績比較!C15)*予算!E14) ->  | N18: 0
A19: 11 | B19: =IF(支出項目!A13="","",支出項目!A13) -> チャッカマン | D19: =IF(AND(予算!D18="〇",予算実績比較!G19=0),"〇","") ->  | F19: 円 | G19: =支出項目!F13 -> 0 | H19: 円 | J19: E-2Rどんぶり | K19: =予算!F15 -> 11625 | L19: =IF(OR(C16="",J19="",K19=0),"",(予算!C15-予算実績比較!C16)*予算!E15) ->  | N19: 0
A20: 12 | B20: =IF(支出項目!A14="","",支出項目!A14) -> たわし | D20: =IF(AND(予算!D19="〇",予算実績比較!G20=0),"〇","") ->  | F20: 円 | G20: =支出項目!F14 -> 0 | H20: 円 | J20: アスペン元禄バシ５００膳 | K20: =予算!F16 -> 1970 | L20: =IF(OR(C17="",J20="",K20=0),"",(予算!C16-予算実績比較!C17)*予算!E16) ->  | N20: 0
A21: 13 | B21: =IF(支出項目!A15="","",支出項目!A15) -> 鳥丸ガラスープの素 | D21: =IF(AND(予算!D20="〇",予算実績比較!G21=0),"〇","") ->  | F21: 円 | G21: =支出項目!F15 -> 0 | H21: 円 | J21: 豚肩ロース | K21: =予算!F17 -> 18000 | L21: =IF(OR(C18="",J21="",K21=0),"",(予算!C17-予算実績比較!C18)*予算!E17) ->  | N21: 0
A22: 14 | B22: =IF(支出項目!A16="","",支出項目!A16) -> キッチンタイマー | D22: =IF(AND(予算!D21="〇",予算実績比較!G22=0),"〇","") ->  | F22: 円 | G22: =支出項目!F16 -> 0 | H22: 円 | J22: チャッカマン | K22: =予算!F18 -> 0 | L22: =IF(OR(C19="",J22="",K22=0),"",(予算!C18-予算実績比較!C19)*予算!E18) ->  | N22: 0
A23: 15 | B23: =IF(支出項目!A17="","",支出項目!A17) -> キッチンペーパー、軍手、ゴム手袋、衛生費 | D23: =IF(AND(予算!D22="〇",予算実績比較!G23=0),"〇","") ->  | F23: 円 | G23: =支出項目!F17 -> 0 | H23: 円 | J23: たわし | K23: =予算!F19 -> 730 | L23: =IF(OR(C20="",J23="",K23=0),"",(予算!C19-予算実績比較!C20)*予算!E19) ->  | N23: 0
A24: 16 | B24: =IF(支出項目!A18="","",支出項目!A18) -> 長ネギ | D24: =IF(AND(予算!D23="〇",予算実績比較!G24=0),"〇","") ->  | F24: 円 | G24: =支出項目!F18 -> 0 | H24: 円 | J24: 鳥丸ガラスープの素 | K24: =予算!F20 -> 15252 | L24: =IF(OR(C21="",J24="",K24=0),"",(予算!C20-予算実績比較!C21)*予算!E20) ->  | N24: 0
A25: 17 | B25: =IF(支出項目!A19="","",支出項目!A19) ->  | D25: =IF(AND(予算!D24="〇",予算実績比較!G25=0),"〇","") ->  | F25: 円 | G25: =支出項目!F19 ->  | H25: 円 | J25: キッチンタイマー | K25: =予算!F21 -> 0 | L25: =IF(OR(C22="",J25="",K25=0),"",(予算!C21-予算実績比較!C22)*予算!E21) ->  | N25: 0
A26: 18 | B26: =IF(支出項目!A20="","",支出項目!A20) ->  | D26: =IF(AND(予算!D25="〇",予算実績比較!G26=0),"〇","") ->  | F26: 円 | G26: =支出項目!F20 ->  | H26: 円 | J26: =B23 -> キッチンペーパー、軍手、ゴム手袋、衛生費 | K26: =予算!F22 -> 4106 | L26: =IF(OR(C23="",J26="",K26=0),"",(予算!C22-予算実績比較!C23)*予算!E22) ->  | N26: 0
A27: 19 | B27: =IF(支出項目!A21="","",支出項目!A21) ->  | D27: =IF(AND(予算!D26="〇",予算実績比較!G27=0),"〇","") ->  | F27: 円 | G27: =支出項目!F21 ->  | H27: 円 | J27: 長ネギ | K27: =予算!F23 -> 2800 | L27: =IF(OR(C24="",J27="",K27=0),"",(予算!C23-予算実績比較!C24)*予算!E23) ->  | N27: 0
A28: 20 | B28: =IF(支出項目!A22="","",支出項目!A22) ->  | D28: =IF(AND(予算!D27="〇",予算実績比較!G28=0),"〇","") ->  | F28: 円 | G28: =支出項目!F22 ->  | H28: 円 | K28: =予算!F24 ->  | L28: =IF(OR(C25="",J28="",K28=0),"",(予算!C24-予算実績比較!C25)*予算!E24) -> 
B29: 小 計 | G29: =SUM(G9:G28) -> 0 | H29: 円 | J29: =B26 ->  | K29: =予算!F25 ->  | L29: =IF(OR(C26="",J29="",K29=0),"",(予算!C25-予算実績比較!C26)*予算!E25) -> 
B30: 消 費 税 | G30: =支出項目!F29 -> 0 | H30: 円 | K30: =予算!F26 ->  | L30: =IF(OR(C27="",J30="",K30=0),"",(予算!C26-予算実績比較!C27)*予算!E26) -> 
B31: 合 計 | G31: =G29+G30 -> 0 | H31: 円 | K31: =予算!F27 ->  | L31: =IF(OR(C28="",J31="",K31=0),"",(予算!C27-予算実績比較!C28)*予算!E27) -> 
J32: =B35 -> ガスボンベLPG | K32: =予算!F32 -> 31680 | L32: =IF(OR(C35="",J32="",K32=0),"",(予算!C32-予算実績比較!C35)*予算!E32) -> 23760 | M32: =IF(OR(C35="",J32="",K32=0),"",(K32+L32)-N32) -> 23760 | N32: =G35 -> 31680
B33: レンタル品等に関する項目：原価実績（固定費） | J33: =B36 -> ガスコンロ特大 | K33: =予算!F33 -> 18480 | L33: =IF(OR(C36="",J33="",K33=0),"",(予算!C33-予算実績比較!C36)*予算!E33) -> 6160 | M33: =IF(OR(C36="",J33="",K33=0),"",(K33+L33)-N33) -> 6160 | N33: =G36 -> 18480
A34: No. | B34: 費 目 | C34: 数 量 | D34: 協賛 | E34: 単 価 | G34: 金 額 | J34: 寸胴鍋45L | K34: =予算!F34 -> 18480 | L34: =IF(OR(C37="",J34="",K34=0),"",(予算!C34-予算実績比較!C37)*予算!E34) -> 6160 | M34: 6160 | N34: 18480
A35: 1 | B35: =IF(支出項目!A33="","",支出項目!A33) -> ガスボンベLPG | C35: 1 | D35: =IF(AND(予算!D32="〇",予算実績比較!G35=0),"〇","") ->  | E35: =IF(C35="","",G35/C35) -> 31680 | F35: 円 | G35: =支出項目!F33 -> 31680 | H35: 円 | K35: =予算!F35 ->  | L35: =IF(OR(C38="",J35="",K35=0),"",(予算!C35-予算実績比較!C38)*予算!E35) -> 
A36: 2 | B36: =IF(支出項目!A34="","",支出項目!A34) -> ガスコンロ特大 | C36: 2 | D36: =IF(AND(予算!D33="〇",予算実績比較!G36=0),"〇","") ->  | E36: 9240 | F36: 円 | G36: =支出項目!F34 -> 18480 | H36: 円 | K36: =予算!F36 ->  | L36: =IF(OR(C39="",J36="",K36=0),"",(予算!C36-予算実績比較!C39)*予算!E36) -> 
A37: 3 | B37: =IF(支出項目!A35="","",支出項目!A35) -> 寸胴鍋45L | C37: 2 | D37: =IF(AND(予算!D34="〇",予算実績比較!G37=0),"〇","") ->  | E37: 9240 | F37: 円 | G37: =支出項目!F35 -> 18480 | H37: 円 | J37: =B40 ->  | K37: =予算!F37 ->  | L37: =IF(OR(C40="",J37="",K37=0),"",(予算!C37-予算実績比較!C40)*予算!E37) ->  | N37: =G40 -> 
A38: 4 | B38: =IF(支出項目!A36="","",支出項目!A36) ->  | C38: 0 | D38: =IF(AND(予算!D35="〇",予算実績比較!G38=0),"〇","") ->  | F38: 円 | G38: =支出項目!F36 ->  | H38: 円 | K38: =予算!F38 ->  | L38: =IF(OR(C41="",J38="",K38=0),"",(予算!C38-予算実績比較!C41)*予算!E38) -> 
A39: 5 | B39: =IF(支出項目!A37="","",支出項目!A37) ->  | C39: 0 | D39: =IF(AND(予算!D36="〇",予算実績比較!G39=0),"〇","") ->  | F39: 円 | G39: =支出項目!F37 ->  | H39: 円 | K39: =予算!F39 ->  | L39: =IF(OR(C42="",J39="",K39=0),"",(予算!C39-予算実績比較!C42)*予算!E39) -> 
A40: 6 | B40: =IF(支出項目!A38="","",支出項目!A38) ->  | D40: =IF(AND(予算!D37="〇",予算実績比較!G40=0),"〇","") ->  | F40: 円 | G40: =支出項目!F38 ->  | H40: 円 | J40: =B43 -> 合 計 | K40: =SUM(K10:K11)-SUM(K12:K39) -> 154157 | L40: =SUM(L10:L39) -> -301420 | M40: =SUM(M10:M39) -> 36080 | N40: =SUM(N10:N11)-SUM(N12:N39) -> -68640
A41: 7 | B41: =IF(支出項目!A39="","",支出項目!A39) ->  | D41: =IF(AND(予算!D38="〇",予算実績比較!G41=0),"〇","") ->  | F41: 円 | G41: =支出項目!F39 ->  | H41: 円 | J41: 消費税・協賛品は差異分析の対象から外しています。
A42: 8 | B42: =IF(支出項目!A40="","",支出項目!A40) ->  | D42: =IF(AND(予算!D39="〇",予算実績比較!G42=0),"〇","") ->  | F42: 円 | G42: =支出項目!F40 ->  | H42: 円
B43: 合 計 | G43: =SUM(G35:G42) -> 68640 | H43: 円
